Cogmind - Beta 11 @@@ ROGUE MODE // 2022.04.10 @ 19:15:52 Player: Azken Zutik Result: Destroyed by B-99 Colossus with Multirail Performance ------------- Evolutions (9) 4500 Regions Visited (36) 7200 Robots Destroyed (1620) 8100 Value Destroyed (57510) 57510 Prototype IDs (67) 1340 Alien Tech Used (0) 0 Bonus (42322) 42322 TOTAL SCORE: 120972 Bonus ------- Triggered High Security 3000 High Alert Combat Kills 30659 Follower Combat Kills 4652 Entered Garrisons 1400 Used RIF Installer 3500 Network Hubs Disabled 400 Aligned with FarCom 300 Met R17 at Cetus 500 Friendly Fire -2089 Cogmind --------- Core Integrity 0/1600 Matter 269/300 Energy 100/100 System Corruption 0% Temperature Cool (0) Movement Core (50) Location -1/Access Parts ------- > --- POWER (4) -------- (None) > --- PROPULSION (7) --- (None) > --- UTILITY (10) ----- (None) > --- WEAPON (4) ------- (None) > --- INVENTORY (5) ---- Experimental EM Disruption Field Improved Remote Force Field Antimissile System Relay Coupler [NC] (27) Sensor Drone Bay (14/20) Peak State ------------ > --- POWER ------------ Graviton Reactor Improved Quantum Reactor > --- PROPULSION ------- Improved Medium Treads Centrium Heavy Treads Centrium Heavy Treads > --- UTILITY ---------- Experimental Cooling System Huge Storage Unit Experimental Targeting Computer Improved Kinecellerator Centrium Medium Armor Plating Centrium Medium Armor Plating Centrium Medium Armor Plating Centrium Medium Armor Plating > --- WEAPON ----------- Improved KE Penetrator Railgun Railgun Advanced KE Penetrator > --- INVENTORY -------- Centrium Heavy Treads Advanced Heat Sink Matter Compressor Matter Compressor Hardened Heavy Armor Plating Improved Medium Armor Plating Damper Plating Beam Splitter Shock Absorption System EM Disruption Field Relay Coupler [NC] Relay Coupler [NC] System Restoration Module Sensor Drone Bay Railgun Improved Proton Missile Launcher Rocket Array Rocket Array Advanced Remote Datajack Gravity Flail [Rating: 160] Favorites ----------- Power F-cell Engine Engine F-cell Engine Power Core Enhanced Nuclear Core Reactor Antimatter Reactor Propulsion Heavy Treads Treads Heavy Treads Leg Flexi-carbon Leg Wheel Wheel Flight Unit Impulse Thruster Utility Light Regenerative Plating Device Improved Heat Sink Storage Huge Storage Unit Processor Experimental Targeting Computer Hackware Relay Coupler [NC] Protection Light Regenerative Plating Weapon Improved Assault Rifle Energy Gun Plasma Rifle Ballistic Gun Improved Assault Rifle Ballistic Cannon Mini Assault Cannon Launcher Rocket Launcher Special Weapon Remote Datajack Impact Weapon Impact Mace Slashing Weapon Makeshift Sword Special Melee Weapon Improved Datajack Build | -11 -10 -10 -9 -9 -9 -8 -8 -8 -8 -8 -8 -7 -7 -7 -7 -7 -7 -6 -6 -6 -6 -5 -5 -5 -5 -4 -4 -4 -4 -4 -4 -4 -4 -3 -2 -1 ------- Run | Scr Mat Min Mat Min Exi Min Mat Gar Mat Sto Gar Fac Was Fac Gar Fac Gar Fac Was Fac Gar Fac Was Fac Gar Fac Was Fac Ext Cet Arc Hub Gar Res Res Acc Slots Evolved 18 | . . . 2 . . . 2 . . . . 2 . . . . . 2 . . . 2 . . . 2 . . . . . . . 2 2 2 Power 3 | . . . . . . . . . . . . . . . . . . . . . . . . . . 1 . . . . . . . 1 . 1 Propulsion 5 | . . . 1 . . . 1 . . . . . . . . . . . . . . 1 . . . . . . . . . . . 1 . 1 Utility 8 | . . . 1 . . . . . . . . 2 . . . . . 1 . . . 1 . . . 1 . . . . . . . . 2 . Weapon 2 | . . . . . . . 1 . . . . . . . . . . 1 . . . . . . . . . . . . . . . . . . Parts Attached 1085 | 7 29 4 35 14 2 20 74 28 27 34 15 57 9 51 17 59 22 147 1 76 7 37 4 20 50 2 14 54 30 12 2 29 51 22 14 9 Power 48 | 1 1 . 1 1 . 1 2 1 1 1 . 2 1 1 . 2 1 3 . 2 . 2 1 2 3 . 1 4 . 2 . 2 6 3 . . Engine 15 | 1 1 . . 1 . . 1 . 1 1 . . . . . . . 3 . 1 . . 1 1 3 . . . . . . . . . . . Core 13 | . . . 1 . . 1 1 1 . . . 2 . 1 . 1 . . . . . . . 1 . . . 1 . . . . 2 1 . . Reactor 20 | . . . . . . . . . . . . . 1 . . 1 1 . . 1 . 2 . . . . 1 3 . 2 . 2 4 2 . . Propulsion 74 | 2 5 . 2 1 . 6 6 4 5 6 . 4 2 1 1 . . . . . . 3 1 . 1 . 5 2 . . . . 7 4 1 5 Treads 56 | 2 3 . 2 1 . . 5 4 5 6 . 4 2 1 1 . . . . . . 3 1 . 1 . 5 2 . . . . 2 4 1 1 Leg 9 | . . . . . . 3 1 . . . . . . . . . . . . . . . . . . . . . . . . . 5 . . . Wheel 5 | . 2 . . . . 3 . . . . . . . . . . . . . . . . . . . . . . . . . . . . . . Hover . | . . . . . . . . . . . . . . . . . . . . . . . . . . . . . . . . . . . . . Flight 4 | . . . . . . . . . . . . . . . . . . . . . . . . . . . . . . . . . . . . 4 Utility 328 | 2 4 . 3 3 2 3 21 6 1 5 1 5 3 21 1 17 7 49 . 25 4 6 1 10 22 2 6 23 15 5 . 15 21 9 6 4 Device 180 | 1 2 . . 1 1 1 18 2 . 2 . 2 2 13 1 7 2 33 . 15 3 3 1 8 10 1 5 12 5 1 . 6 9 7 4 2 Storage 12 | 1 2 . . . . . 1 . . . . 1 . . . 1 3 2 . . . . . . . . . . 1 . . . . . . . Processor 9 | . . . 2 . . . 1 . . . . . . . . 1 . . . 1 . . . . 1 . . 1 . . . 1 1 . . . Hackware 23 | . . . . . . . . 1 . 1 . . 1 . . 1 . 6 . 1 . . . 1 3 . . 1 4 . . 1 1 1 . . Protection 104 | . . . 1 2 1 2 1 3 1 2 1 2 . 8 . 7 2 8 . 8 1 3 . 1 8 1 1 9 5 4 . 7 10 1 2 2 Artifact . | . . . . . . . . . . . . . . . . . . . . . . . . . . . . . . . . . . . . . Weapon 635 | 2 19 4 29 9 . 10 45 17 20 22 14 46 3 28 15 40 14 95 1 49 3 26 1 8 24 . 2 25 15 5 2 12 17 6 7 . Energy Gun 11 | . . . . . . 1 1 . . . . . . . . 1 . 1 . 2 . . . . . . . . . . . . 5 . . . Energy Cannon . | . . . . . . . . . . . . . . . . . . . . . . . . . . . . . . . . . . . . . Ballistic Gun 331 | 2 9 2 14 6 . 5 22 11 11 8 9 23 1 15 12 20 8 46 . 27 2 13 . 2 15 . . 13 8 3 1 7 9 3 4 . Ballistic Cannon 3 | . . . . . . . . . . 2 . 1 . . . . . . . . . . . . . . . . . . . . . . . . Launcher 180 | . 9 2 14 3 . 4 20 2 7 7 1 18 . 7 2 11 4 26 . 12 . 8 . 2 3 . . 8 3 1 . 3 2 . 1 . Special Weapon 52 | . . . . . . . . . . . . 1 2 3 . 3 . 15 . 3 . 3 . 4 3 . 1 2 4 1 1 2 1 2 1 . Impact Weapon 43 | . . . . . . . . . . 3 3 2 . 3 1 5 2 7 1 5 1 2 1 . 2 . 1 2 . . . . . 1 1 . Slashing Weapon 8 | . . . 1 . . . 2 2 2 . . . . . . . . . . . . . . . 1 . . . . . . . . . . . Piercing Weapon . | . . . . . . . . . . . . . . . . . . . . . . . . . . . . . . . . . . . . . Special Melee Weapon 7 | . 1 . . . . . . 2 . 2 1 1 . . . . . . . . . . . . . . . . . . . . . . . . Unidentified Prototypes 36 | . . . 1 1 . . 1 . . 4 . 1 . . . 2 . 3 . 3 . 1 . 3 3 . . 7 . 2 . 2 . 2 . . Corrupted Parts 3 | . . . . . . . . . . . . . . . . . . . . . . . . . 3 . . . . . . . . . . . System Corruption 9 | . . . . . . . . . . . . . . . . . . . . . . . . . 9 . . . . . . . . . . . Parts Lost 99 | . 3 . . 3 . 2 . 1 2 1 . . . 6 2 . 1 4 . 1 . 3 . . 1 . . 11 2 1 . 4 25 . 19 7 Power 13 | . 1 . . . . 1 . . . . . . . . . . 1 1 . . . . . . . . . 3 . . . 1 4 . 1 . Propulsion 18 | . 2 . . 2 . 1 . 1 . . . . . . 1 . . . . . . . . . . . . . . . . . 3 . 4 4 Utility 39 | . . . . . . . . . 1 1 . . . 5 1 . . 1 . 1 . 1 . . . . . 4 1 1 . 1 11 . 7 3 Weapon 29 | . . . . 1 . . . . 1 . . . . 1 . . . 2 . . . 2 . . 1 . . 4 1 . . 2 7 . 7 . Highest Loss Streak 19 | . 1 . . 3 . 2 . 1 2 1 . . . 2 1 . 1 4 . 1 . 2 . . 1 . . 6 1 1 . 3 9 . 19 4 To Critical Strikes 3 | . . . . . . . . . . . . . . . . . . . . . . . . . . . . . 1 . . . 2 . . . Average Slot Usage (%) 89 | . 99 100 92 88 88 99 100 99 99 99 94 99 90 83 83 83 83 85 66 85 86 84 70 87 87 83 72 84 82 87 89 78 81 95 67 14 Engine 5 | . 13 14 9 10 11 . 7 8 2 9 9 . . . . . . 5 6 5 6 2 3 5 4 5 6 . . . . . . . . . Core 1 | . . . 1 . . 10 1 . 6 . . 6 1 1 7 6 1 . . . . . . . . . . 1 . . . . 2 9 5 . Reactor 1 | . . . . . . . . . . . . . 5 5 . . 5 . . . . 2 1 . . . 3 7 10 10 10 9 5 4 3 . Treads 20 | . 26 28 33 22 22 2 32 35 36 35 36 30 20 15 14 15 15 13 13 13 13 13 17 17 17 15 14 15 15 15 15 14 4 17 12 . Leg 1 | . . . . . . 26 3 . . . . . . . . . . . . . . . . . . . . . . . . . 11 5 1 . Device 10 | . 14 14 7 . . . 8 8 9 8 9 7 8 7 13 7 14 19 . 15 13 11 2 19 11 14 5 10 13 11 10 9 12 13 13 2 Storage 8 | . 14 14 11 11 11 11 9 9 9 9 9 7 7 7 7 7 7 6 6 6 6 5 5 5 5 5 5 5 5 5 5 5 5 4 3 . Processor 2 | . . . 4 11 11 11 . . . . . . . . . . . . . 3 6 5 5 5 5 5 5 5 5 5 5 3 . 4 3 . Hackware 2 | . . . . . . . . . . . . . 6 4 . 5 . 5 6 2 6 5 2 3 5 5 5 5 1 . . 1 5 5 6 . Protection 9 | . . . 2 10 10 10 9 9 8 9 8 22 14 17 16 15 14 7 6 9 5 10 5 5 10 10 5 11 8 17 21 12 12 7 3 3 Ballistic Gun 20 | . 23 25 16 18 22 21 21 25 25 23 19 20 16 21 21 14 18 23 20 23 25 21 17 19 18 21 15 15 18 20 16 20 15 18 12 . Launcher 1 | . 3 2 5 3 . . 3 . 1 1 . 2 . . 1 . . 1 . . . . . . 1 . . 1 . . . . . . . . Naked Turns 148 | . . . . . . . . . . . . . . . . . . . . . . . . . . . . . . . . . . . 100 48 Heaviest Build 198 | 15 91 52 60 59 53 57 109 109 105 108 108 117 116 128 112 118 119 155 151 135 125 157 155 136 133 141 172 163 177 175 170 198 180 177 185 5 Greatest Support 196 | 40 40 40 63 63 43 43 87 94 94 90 90 90 140 140 140 140 140 140 140 140 140 168 168 168 170 170 170 190 190 190 190 190 160 144 196 75 Greatest Overweight (x) 9 | 1 9 1 . 1 1 5 1 2 1 1 1 1 1 . 1 . . 1 1 . 1 . . . . . 1 . . . . 1 2 1 1 . Average Overweight (x) . | . 2 1 . . 1 1 . 1 1 1 1 1 . . . . . . 1 . . . . . . . . . . . . . . 1 . . Largest Inventory Capacity 25 | 8 25 20 20 20 20 20 25 25 25 25 25 25 25 25 25 25 25 25 25 25 25 25 25 25 25 25 25 25 25 25 25 25 25 25 25 5 Average Capacity 23 | 5 17 20 20 20 20 20 23 25 25 25 25 25 25 25 25 25 25 25 25 25 25 25 25 25 25 25 25 25 25 25 25 25 25 25 20 5 Most Carried 25 | 3 20 20 20 20 20 20 25 25 25 25 25 25 25 25 25 25 25 25 25 25 25 25 25 25 25 25 25 25 25 25 25 25 25 25 25 5 Average Carried 22 | . 12 19 19 19 20 19 23 24 24 24 23 24 24 24 24 24 24 24 24 24 24 24 24 24 24 24 24 24 24 24 25 24 21 24 18 5 Final Capacity 25 | 8 20 20 20 20 20 20 25 25 25 25 25 25 25 25 25 25 25 25 25 25 25 25 25 25 25 25 25 25 25 25 25 25 25 25 25 5 Final Carried 25 | 3 20 20 20 20 20 20 25 25 25 25 25 25 25 25 25 25 25 25 25 25 25 25 25 25 25 24 25 25 25 25 25 24 25 25 25 5 Class Distribution -------------------- 17% | Mutant 16% | Scavenger-Skirmisher 15% | Scavenger-Mutant 12% | Scavenger-Tank 9% | Trapper-Mutant 9% | Skirmisher 4% | Tank Dominant Class ---------------- Mutant | -10/Materials Trapper-Mutant | -10/Mines Trapper-Mutant | -9/Materials Mutant | -9/Mines Mutant | -9/Exiles Scavenger-Mutant | -8/Mines Skirmisher | -8/Materials Tank | -8/Garrison Scavenger-Tank | -8/Materials Tank | -8/Storage Commander-Skirmisher | -8/Garrison Skirmisher | -7/Factory Scavenger-Mutant | -7/Waste Scavenger-Skirmisher | -7/Factory Scavenger-Skirmisher | -7/Garrison Mutant | -7/Factory Scavenger-Skirmisher | -7/Garrison Scavenger-Tank | -6/Factory Scavenger-Skirmisher | -6/Waste Scavenger-Skirmisher | -6/Factory Skirmisher | -6/Garrison Skirmisher | -5/Factory Scavenger-Mutant | -5/Waste Scavenger-Mutant | -5/Factory Scavenger-Skirmisher | -5/Garrison Botlord-Skirmisher | -4/Factory Botlord-Mutant | -4/Waste Botlord-Skirmisher | -4/Factory Commander-Tank | -4/Extension Scavenger-Mutant | -4/Cetus Scavenger-Mutant | -4/Archives Scavenger-Tank | -4/Hub_04(d) Scavenger-Tank | -4/Garrison Scavenger-Tank | -3/Research Scavenger-Tank | -2/Research Mutant | -1/Access Resources | -11 -10 -10 -9 -9 -9 -8 -8 -8 -8 -8 -8 -7 -7 -7 -7 -7 -7 -6 -6 -6 -6 -5 -5 -5 -5 -4 -4 -4 -4 -4 -4 -4 -4 -3 -2 -1 ----------- Run | Scr Mat Min Mat Min Exi Min Mat Gar Mat Sto Gar Fac Was Fac Gar Fac Gar Fac Was Fac Gar Fac Was Fac Gar Fac Was Fac Ext Cet Arc Hub Gar Res Res Acc Matter Collected 57536 | 538 3107 2004 1687 1501 . 1063 4097 1739 1686 2014 1483 2764 555 3488 1103 1610 1204 5164 945 3195 357 2062 605 376 1796 . 987 1545 2460 392 237 2250 2693 387 438 4 Remotely 2688 | . . . . . . . 2688 . . . . . . . . . . . . . . . . . . . . . . . . . . . . . Salvage Created 69099 | 320 2883 3106 2105 3461 . 2284 4697 1116 1734 1709 1019 2881 . 3206 1000 2046 1185 7221 1755 4604 357 3679 1427 469 1693 . 1556 2217 1485 169 382 3554 2267 442 1070 . Parts 3378 | 33 231 179 162 173 . 131 295 60 99 102 67 140 . 188 39 107 60 261 24 199 18 143 21 12 88 . 27 108 61 6 19 175 81 16 53 . Haulers Intercepted 37 | . 2 . 3 . . . 5 . 4 4 . 2 . 2 . 1 . 2 . 2 . 2 . 2 . . . 2 . . . 2 . 2 . . Recyclers Shooed 72 | . 7 7 1 16 . 5 8 . 1 1 . 4 . 2 . 4 . 5 . 2 . 2 . . . . . 5 . . . 1 . . 1 . Parts Field Recycled 82 | . . . . . . . . . . . . . . . . . . 46 . . . . . . 36 . . . . . . . . . . . Retrieved Matter 996 | . . . . . . . . . . . . . . . . . . 553 . . . . . . 443 . . . . . . . . . . . Parts Self-Destructed . | . . . . . . . . . . . . . . . . . . . . . . . . . . . . . . . . . . . . . Prevented . | . . . . . . . . . . . . . . . . . . . . . . . . . . . . . . . . . . . . . Kills | -11 -10 -10 -9 -9 -9 -8 -8 -8 -8 -8 -8 -7 -7 -7 -7 -7 -7 -6 -6 -6 -6 -5 -5 -5 -5 -4 -4 -4 -4 -4 -4 -4 -4 -3 -2 -1 ------- Run | Scr Mat Min Mat Min Exi Min Mat Gar Mat Sto Gar Fac Was Fac Gar Fac Gar Fac Was Fac Gar Fac Was Fac Gar Fac Was Fac Ext Cet Arc Hub Gar Res Res Acc Combat Hostiles Destroyed 988 | . 27 14 59 16 . 5 56 25 35 37 25 47 . 54 25 30 27 127 6 80 9 60 6 4 36 . 6 44 23 5 4 46 33 3 14 . Guns 491 | . 6 1 . 7 . 1 6 22 18 19 24 26 . 28 18 9 11 50 6 33 9 31 6 4 24 . 6 15 17 5 4 43 31 3 8 . Cannons 1 | . . . . . . . . . . 1 . . . . . . . . . . . . . . . . . . . . . . . . . . AOE 488 | . 21 13 59 9 . 4 50 3 17 16 1 21 . 26 7 21 14 77 . 47 . 29 . . 11 . . 29 6 . . 3 . . 4 . Classes Destroyed 25 | 3 6 . 5 1 . 1 . 1 . . 1 2 . . 1 . . 1 1 . . . . . . . . 2 . . . . . . . . Worker 267 | 4 46 25 12 26 . 34 40 . 6 4 . 5 . 9 . 7 . 9 . 13 . 6 . 1 . . . 10 2 . . 7 . . 1 . Builder 179 | . 20 24 7 21 . 22 35 . 1 1 . 2 . 9 . 9 . 3 . 7 . 5 . . . . . 7 1 . . 4 . 1 . . Tunneler 77 | 9 5 21 1 23 . 4 4 . . . . 2 . 1 . 1 . 1 . 1 . 2 . 1 . . . . . . . . . 1 . . Hauler 37 | . 2 . 3 . . . 5 . 4 4 . 2 . 2 . 1 . 2 . 2 . 2 . 2 . . . 2 . . . 2 . 2 . . Recycler 173 | 1 9 22 8 27 . 11 19 . 2 3 . 11 . 7 . 12 . 18 . 9 . 11 . . . . . 2 1 . . . . . . . Mechanic 35 | . . . 3 . . . 1 . 2 1 1 5 . 3 . 1 . 10 . 4 . 2 . 1 . . . . 1 . . . . . . . Operator 3 | . 1 . . . . . . . . . . . . . . . . . . 1 . . . . . . . . 1 . . . . . . . Watcher 30 | . 3 . 3 . . . 3 . 2 1 1 2 . 3 . 1 . 3 . 3 . 2 . . . . . 1 1 . . 1 . . . . Swarmer 118 | . 9 6 15 3 . . . 4 2 13 6 2 . 4 3 . 8 6 . . 4 10 . . 4 . . 4 4 4 . . 7 . . . Cutter 3 | . . . . . . . . . . . 3 . . . . . . . . . . . . . . . . . . . . . . . . . Saboteur 12 | . . . . . . . . . . . . . . . . . . 4 . 4 . 2 . . . . . 1 . . . 1 . . . . Grunt 483 | . 18 8 30 5 . 4 40 16 21 13 8 23 . 24 19 20 16 63 . 47 4 28 . 2 22 . . 10 3 . . 16 18 . 5 . Brawler 50 | . . . 2 . . . 6 . 2 2 2 4 . 6 . 2 . 10 . 4 . 3 . . 1 . . 2 . . . 3 1 . . . Duelist 67 | . . . 5 . . . 1 2 3 1 1 7 . 1 . 2 1 14 . 9 . 9 . . 3 . . 4 1 . . 3 . . . . Protector 31 | . . . 3 . . . 3 . . 2 . 2 . 4 . 2 . 6 . 2 . 2 . . . . . 4 . . . 1 . . . . Sentry 62 | . . . 4 . . . 4 2 6 6 5 . . 3 1 . 2 5 . 2 . . . 1 . . . . 7 . 4 4 3 3 . . Demolisher 1 | . . . . . . . . . . . . 1 . . . . . . . . . . . . . . . . . . . . . . . . Specialist 5 | . . . . . . . . . . . . . . . 1 . . . . . . . . . . . . 2 . . . 2 . . . . Hunter 31 | . . . . . . 1 2 . 1 . . 2 . . . . . 3 . 2 . . . 1 5 . . 5 4 . . 2 . . 3 . Programmer 87 | . . . . . . . . . . . . 6 . 12 1 4 . 16 . 10 1 6 . . . . . 10 2 . . 10 3 . 6 . Heavy 2 | . . . . . . . . . . . . . . . . . . . . . . . . . . . . 1 . . . 1 . . . . Behemoth 4 | . . . . . . . . 1 . . . . . . . . . . . . . . . . 1 . . . 1 . . . 1 . . . Compactor 18 | . . . . . . . . . . . . . . . . . . . 6 . . . 6 . . . 6 . . . . . . . . . Cetus Guard 1 | . . . . . . . . . . . . . . . . . . . . . . . . . . . . . . 1 . . . . . . Lightning 3 | . . . . . . . . . . . . . . . . . . . . . . . . . . . . . . . . 3 . . . . Striker 1 | . . . . . . . . . . . . . . . . . . . . . . . . . . . . 1 . . . . . . . . Assembled 8 | . . . . 8 . . . . . . . . . . . . . . . . . . . . . . . . . . . . . . . . Surgeon 1 | . . . . . . . . . . . . . . . . . . . . . . . . . . . . 1 . . . . . . . . Thug 3 | . . 1 . . . . . . . . . . . . . . . . . . . . . . . . . . 2 . . . . . . . Savage 2 | . . . . . . . . . . . . . . . . . . . . . . . . . . . . . 2 . . . . . . . Butcher 1 | . . . . . . . . . . . . . . . . . . . . 1 . . . . . . . . . . . . . . . . Guerrilla 1 | . . . . . . . . . . . . . . . . . . . . . . . . . . . . . 1 . . . . . . . Best Kill Streak 22 | 4 13 4 14 9 . 11 10 5 11 7 11 9 . 11 7 15 14 10 2 22 4 15 2 7 7 . 1 14 6 4 4 7 6 3 13 . Combat Bots Only 14 | . 8 3 10 7 . 2 8 5 8 5 6 5 . 9 7 8 14 9 2 14 4 12 2 2 7 . 1 11 4 4 4 6 6 2 12 . Max Kills in Single Turn 8 | 2 2 2 8 3 . 2 3 2 4 4 2 4 . 6 4 5 4 5 1 6 2 6 1 2 4 . 1 8 3 2 1 4 2 3 5 . Gunslinging 1 | . . . . . . . . . . . 1 . . . . . . . . 1 1 1 . . . . . 1 1 . . 1 1 1 1 . Exploded 8 | . 2 2 5 2 . 2 3 2 3 3 1 2 . 4 4 5 4 5 . 4 . 3 . . 4 . . 8 2 . . 1 . . 3 . Melee . | . . . . . . . . . . . . . . . . . . . . . . . . . . . . . . . . . . . . . Uniques/NPCs Destroyed . | . . . . . . . . . . . . . . . . . . . . . . . . . . . . . . . . . . . . . Combat | -11 -10 -10 -9 -9 -9 -8 -8 -8 -8 -8 -8 -7 -7 -7 -7 -7 -7 -6 -6 -6 -6 -5 -5 -5 -5 -4 -4 -4 -4 -4 -4 -4 -4 -3 -2 -1 -------- Run | Scr Mat Min Mat Min Exi Min Mat Gar Mat Sto Gar Fac Was Fac Gar Fac Gar Fac Was Fac Gar Fac Was Fac Gar Fac Was Fac Ext Cet Arc Hub Gar Res Res Acc Damage Taken 43583 | . 625 202 414 745 . 237 402 800 944 716 561 1515 . 2495 1053 780 933 2999 . 1866 136 1836 . 478 1624 . . 4041 1937 401 176 4648 4463 310 4221 2025 Core 4927 | . 118 27 77 105 . 29 14 87 72 60 33 83 . 226 151 65 33 197 . 55 18 73 . 48 106 . . 320 57 20 . 131 418 9 687 1608 Absorbed by Shields 8593 | . . . . . . . 156 166 312 260 158 390 . 442 109 . . 1511 . 1281 135 671 . 45 561 . . 256 676 65 . 625 401 154 193 26 Reduced by Siege Mode 1963 | . . . . . . . . . . . . . . 41 63 . 78 216 . 116 10 123 . 5 63 . . 191 69 . . 174 153 . 661 . Redirected to Shielding 318 | . . . . . . . . . . . . . . . . . . . . . . . . . . . . 8 31 . . . . 23 54 202 Regen/Repaired (Parts) 12335 | . . . . . . . . . 46 257 295 849 . 721 227 928 939 2135 . 1378 175 818 . 102 976 . . 897 742 106 . 744 . . . . Core Remaining (%) 57 | 100 . 42 . . . 47 . . . . 51 . . . . . 20 . . . 68 . . . 77 . . . . . . . 17 99 52 . Volleys Fired 3608 | 28 291 249 90 341 . 205 234 84 98 88 66 126 46 194 42 81 47 250 67 135 18 102 46 19 120 . 53 82 101 32 12 100 123 12 26 . Largest 4 | 2 2 2 2 2 . 2 3 3 3 3 3 3 3 3 3 3 3 4 3 4 4 4 3 4 4 . 3 4 4 4 4 4 4 4 4 . Hottest 254 | 40 66 40 66 43 . 85 105 76 78 96 78 99 69 84 91 79 74 109 79 111 111 111 76 109 111 . 81 143 128 128 133 138 254 122 122 . Shots Fired 8667 | 56 522 473 158 625 . 392 602 228 243 231 172 331 90 452 110 169 98 698 190 387 69 316 123 57 305 . 147 191 224 65 45 369 397 48 84 . Gun 7799 | 56 444 448 67 574 . 381 507 216 207 200 171 283 82 429 107 151 80 624 184 352 69 297 116 51 264 . 141 154 165 64 44 356 388 48 79 . Cannon 13 | . . . . . . . . . . 9 . 4 . . . . . . . . . . . . . . . . . . . . . . . . Launcher 701 | . 78 25 91 51 . 11 95 12 36 22 1 44 . 14 3 12 18 48 . 29 . 17 . 1 38 . . 29 11 . . 9 1 . 5 . Special 154 | . . . . . . . . . . . . . 8 9 . 6 . 26 6 6 . 2 7 5 3 . 6 8 48 1 1 4 8 . . . Kinetic 7692 | 56 444 448 67 574 . 377 495 216 207 209 171 287 82 429 107 151 80 624 184 352 69 297 116 51 264 . 141 134 165 64 44 356 304 48 79 . Thermal 120 | . . . . . . 4 12 . . . . . . . . . . . . . . . . . . . . 20 . . . . 84 . . . Explosive 619 | . 78 25 91 51 . 11 95 12 36 17 1 37 . 14 3 12 1 48 . 29 . 17 . 1 9 . . 14 11 . . 6 . . . . Electromagnetic 82 | . . . . . . . . . . 5 . 7 . . . . 17 . . . . . . . 29 . . 15 . . . 3 1 . 5 . Robot Hit Streak 54 | 7 18 14 15 23 . 13 13 36 17 14 21 16 14 20 39 21 15 40 27 54 21 38 36 10 30 . 35 19 21 16 12 38 36 6 17 . Robot Miss Streak 9 | 3 4 6 2 6 . 3 7 4 5 6 4 3 1 3 6 5 2 6 2 4 2 4 1 3 9 . 2 3 3 3 2 7 6 3 2 . Penetration Max 1 | . . . . . . . . . . . . . . 1 1 . . 1 1 1 . . . . 1 . . 1 1 1 1 1 1 1 1 . Secondary Targets 86 | . . . . . . . 1 1 1 2 5 7 . . 5 . 3 3 2 4 2 7 . 1 6 . . 6 4 . . 10 13 2 1 . Max Gunslinging Chain 2 | . . . . . . . 1 1 1 1 1 1 . . 1 . 1 1 1 2 1 1 . 1 1 . . 1 1 . . 1 1 1 1 . Shots Hit Robots 5638 | 33 244 273 87 409 . 251 275 140 144 147 97 233 81 272 77 124 50 500 168 285 44 244 108 46 176 . 129 152 157 33 33 263 262 33 68 . Core Hits 4276 | 15 140 137 149 197 . 123 250 55 103 84 47 162 10 221 83 144 50 602 30 388 20 301 24 30 121 . 26 268 146 15 16 166 96 19 38 . Critical Kills 38 | . . . . 1 . 2 1 . . . 2 2 . 2 1 1 . 4 . . . 1 2 . 1 . . 1 2 . 1 9 3 . 2 . Critical Parts Destroyed 64 | 1 2 . 2 2 . . . . . . . 1 . 2 . 3 . 6 . 3 . 2 . 2 . . . 3 6 2 2 10 9 2 4 . Critical Strikes 114 | 1 2 . 2 3 . 2 1 . . . 2 3 1 4 1 4 . 10 . 3 . 3 2 2 1 . . 4 10 3 4 19 19 2 6 . Burn 6 | . . . . . . . . . . . . . . . . . . . . . . . . . . . . . . . . . 6 . . . Destroy 105 | 1 2 . 2 3 . 2 1 . . . 2 3 1 4 1 3 . 9 . 3 . 3 2 1 1 . . 4 10 3 4 19 13 2 6 . Smash 3 | . . . . . . . . . . . . . . . . 1 . 1 . . . . . 1 . . . . . . . . . . . . Melee Attacks 144 | . . . 1 . . . 2 7 2 6 26 5 . 15 . 8 4 30 2 10 1 1 8 1 5 . 8 1 . . . . . . 1 . Impact 121 | . . . . . . . . . . 4 18 4 . 15 . 8 4 30 2 10 1 1 8 1 5 . 8 1 . . . . . . 1 . Slashing 10 | . . . 1 . . . 2 5 2 . . . . . . . . . . . . . . . . . . . . . . . . . . . Piercing . | . . . . . . . . . . . . . . . . . . . . . . . . . . . . . . . . . . . . . Sneak Attacks 22 | . . . . . . . . . . 2 8 1 . . . 5 . 5 . . . . . 1 . . . . . . . . . . . . Combat Hostiles . | . . . . . . . . . . . . . . . . . . . . . . . . . . . . . . . . . . . . . Follow-up Attacks . | . . . . . . . . . . . . . . . . . . . . . . . . . . . . . . . . . . . . . Damage Inflicted 176945 | 442 4817 4808 6385 5508 . 2865 10643 2561 5032 4170 1676 8018 1129 8173 2192 6141 2030 23323 2982 13876 889 11142 1716 1318 4590 . 2537 10023 6505 859 1011 9857 6005 1036 2673 13 Guns 93275 | 442 2931 3366 625 3309 . 2527 3910 2305 2377 2206 1646 3379 1129 4681 1602 1816 651 7991 2982 5184 889 4682 1716 731 3093 . 2537 3217 3585 859 1011 7505 5994 1036 1361 . Cannons 131 | . . . . . . . . . . 131 . . . . . . . . . . . . . . . . . . . . . . . . . . Explosions 82305 | . 1879 1418 5752 2192 . 321 6733 256 2655 1833 30 4639 . 3492 590 3929 1379 14836 . 8603 . 6460 . 519 1497 . . 6806 2895 . . 2273 11 . 1307 . Melee 960 | . . . . . . . . . . . . . . . . 396 . 496 . . . . . 68 . . . . . . . . . . . . Ramming 274 | . 7 24 8 7 . 17 . . . . . . . . . . . . . 89 . . . . . . . . 25 . . 79 . . 5 13 Kinetic 91989 | 442 2931 3366 625 3309 . 2496 3846 2305 2377 2337 1646 3379 1129 4681 1602 1816 651 7991 2982 5184 889 4682 1716 731 3093 . 2537 2861 3585 859 1011 7505 5028 1036 1361 . Thermal 4288 | . . 95 . . . 31 232 . . 79 . 364 . . . 295 181 . . . . . . . . . . 940 47 . . 310 966 . 748 . Explosive 75073 | . 1797 1323 5752 2192 . 321 6565 256 2655 1359 30 3637 . 3492 590 3634 232 14836 . 8603 . 6460 . 519 1264 . . 5870 2848 . . 838 . . . . Electromagnetic 4361 | . 82 . . . . . . . . 395 . 638 . . . . 966 . . . . . . . 233 . . 352 . . . 1125 11 . 559 . Impact 960 | . . . . . . . . . . . . . . . . 396 . 496 . . . . . 68 . . . . . . . . . . . . Slashing . | . . . . . . . . . . . . . . . . . . . . . . . . . . . . . . . . . . . . . Piercing . | . . . . . . . . . . . . . . . . . . . . . . . . . . . . . . . . . . . . . Highest Corruption 47 | . . . . . . . 2 2 2 2 2 4 33 47 47 47 31 5 3 8 1 7 9 13 9 . . 2 2 . . 4 6 1 4 . Average Corruption 11 | . . . . . . . 2 2 2 2 2 3 22 39 47 36 16 2 1 3 1 3 7 10 4 . . 1 1 . . 3 5 1 3 . Corruption Purged 104 | . . . . . . . . . . . . . . . . 21 31 14 . 10 1 . . 13 9 . . . 5 . . . . . . . Corruption Blocked . | . . . . . . . . . . . . . . . . . . . . . . . . . . . . . . . . . . . . . Effects 1379 | . . . . . . . 47 73 35 25 74 48 20 377 129 163 27 26 7 60 12 29 35 24 4 . . 5 4 . . 26 125 2 2 . Message Errors 323 | . . . . . . . 10 18 7 4 20 8 4 81 29 39 8 6 2 19 4 9 6 5 2 . . . . . . 6 35 1 . . Matter Fused 320 | . . . . . . . 14 15 7 7 22 16 4 89 30 32 6 5 3 10 1 3 6 7 . . . 2 1 . . 7 32 1 . . Heat Flow Errors 148 | . . . . . . . 5 9 4 3 9 4 2 35 10 22 5 6 1 5 1 4 4 3 . . . . . . . . 16 . . . Energy Discharges 167 | . . . . . . . 6 11 7 4 7 9 4 40 11 17 6 7 . 8 2 2 6 5 1 . . . 1 . . 1 12 . . . Parts Rejected 6 | . . . . . . . . 1 . . . . . . . . . . . 2 . 1 . . . . . . . . . . 2 . . . Data Loss (minor) 172 | . . . . . . . 6 5 6 2 8 6 3 53 19 16 2 . . 5 2 5 7 2 1 . . 2 1 . . 5 14 . 2 . Data Loss (major) 64 | . . . . . . . 1 8 . 2 2 1 . 18 8 9 . 1 . 2 1 1 2 . . . . . . . . 3 5 . . . Misfires 61 | . . . . . . . 3 3 3 . 5 1 . 13 6 6 . 1 1 5 . 1 3 . . . . 1 1 . . 2 6 . . . Alerts 27 | . . . . . . . . 1 1 2 1 1 1 8 3 2 . . . 1 1 . 1 2 . . . . . . . . 2 . . . Misdirections 4 | . . . . . . . . . . . . . . 3 . 1 . . . . . . . . . . . . . . . . . . . . Weapon Failures 87 | . . . . . . . 2 2 . 1 . 2 2 37 13 19 . . . 3 . 3 . . . . . . . . . 2 1 . . . Overload Shots . | . . . . . . . . . . . . . . . . . . . . . . . . . . . . . . . . . . . . . Overflow Damage 1730 | . 55 81 156 71 . . 105 12 64 18 . 68 . 17 5 230 19 489 . 63 . 33 . 68 . . . 16 43 . . . . . 117 . Projectiles . | . . . . . . . . . . . . . . . . . . . . . . . . . . . . . . . . . . . . . Explosions 1146 | . 55 81 156 71 . . 105 12 64 18 . 68 . 17 5 88 19 139 . 54 . 33 . . . . . 16 28 . . . . . 117 . Melee 584 | . . . . . . . . . . . . . . . . 142 . 350 . 9 . . . 68 . . . . 15 . . . . . . . Knockbacks 2 | . . . . . . . . . . . . . . . . . . 2 . . . . . . . . . . . . . . . . . . Impact 2 | . . . . . . . . . . . . . . . . . . 2 . . . . . . . . . . . . . . . . . . Kinetic . | . . . . . . . . . . . . . . . . . . . . . . . . . . . . . . . . . . . . . Secondary . | . . . . . . . . . . . . . . . . . . . . . . . . . . . . . . . . . . . . . Self-Inflicted Damage 1628 | . 72 20 25 159 . . 83 40 53 . . . . 183 187 51 68 185 . 83 . 18 . . 11 . . 71 155 . . 80 . . 79 5 Shots 77 | . 3 1 2 5 . . 3 1 2 . . . . 9 10 3 5 12 . 5 . 1 . . 1 . . 4 6 . . 2 . . 2 . Rammed 26 | . . 5 1 3 . . . . . . . . . . . 1 . . . 4 . . . . . . . . . . . 6 . . 1 5 Targets Rammed 32 | . 1 5 1 4 . 3 . . . . . . . . . 1 . . . 4 . . . . . . . . 1 . . 6 . . 1 5 Kicked 3 | . . . . . . 3 . . . . . . . . . . . . . . . . . . . . . . . . . . . . . . Crushed 3 | . 1 . . 1 . . . . . . . . . . . . . . . . . . . . . . . . 1 . . . . . . . Highest Temperature 669 | 1 30 12 54 32 . 156 264 274 254 230 265 241 255 436 223 252 234 233 417 404 143 255 345 394 . . 347 59 . . . 449 669 99 86 . Average Temperature 77 | 1 9 7 18 13 . 7 33 65 59 59 57 59 120 95 55 88 90 34 150 142 95 76 88 151 . . 207 21 . . . 140 141 39 33 . Received Heat Transfer 7834 | . 186 84 144 151 . 54 156 222 402 234 179 462 . 385 447 162 219 671 . 436 24 506 . 102 257 . . 290 191 . 18 629 669 49 319 186 Effects 54 | . . . . . . . 1 4 . . . . . 7 1 . . . 2 1 . . 5 . . . 2 . . . . 10 21 . . . Shutdowns 11 | . . . . . . . . . . . . . . 1 . . . . . . . . . . . . . . . . . 4 6 . . . Energy Bleed 8 | . . . . . . . 1 1 . . . . . . 1 . . . 2 . . . 1 . . . . . . . . 1 1 . . . Interference 24 | . . . . . . . . 3 . . . . . 5 . . . . . . . . 4 . . . 2 . . . . 3 7 . . . Matter Decay 3 | . . . . . . . . . . . . . . . . . . . . 1 . . . . . . . . . . . . 2 . . . Short Circuit 2 | . . . . . . . . . . . . . . 1 . . . . . . . . . . . . . . . . . 1 . . . . Damage (minor) 2 | . . . . . . . . . . . . . . . . . . . . . . . . . . . . . . . . 1 1 . . . Damage (major) 4 | . . . . . . . . . . . . . . . . . . . . . . . . . . . . . . . . . 4 . . . Siege Activations 123 | . . . . . . . . . . . . . . 6 7 . 3 35 . 24 3 12 . 1 8 . . 6 6 . . 8 3 . 1 . Total Turns 2970 | . . . . . . . . . . . . . . 474 205 . 69 592 . 517 82 237 . 13 157 . . 118 77 . . 231 139 . 59 . Longest Duration 234 | . . . . . . . . . . . . . . 234 100 . 38 109 . 108 52 40 . 13 29 . . 45 17 . . 97 68 . 59 . Robots Corrupted 6 | . . . . . . . . . . 1 . . . . . . 2 . . . . . . . 1 . . . . . . . . . 2 . Combat Hostiles 6 | . . . . . . . . . . 1 . . . . . . 2 . . . . . . . 1 . . . . . . . . . 2 . Parts Fried 39 | . . 2 . . . . . . . . . 7 . . . 2 4 7 . 3 . . . 3 1 . . . . . . 9 . . 1 . Impact Corruptions 15 | . . . . . . . . . . . . . . . . 4 . 8 . 1 . . . 1 . . . . 1 . . . . . . . Robots Melted 2 | . . . . . . . . . . . . . . . . . . . . . . . . . . . . . . . . . 2 . . . Combat Hostiles 2 | . . . . . . . . . . . . . . . . . . . . . . . . . . . . . . . . . 2 . . . Parts Melted 13 | . . . . . . . . . . . . . . . . . . . . . . . . . . . . 2 . . . . 9 2 . . Heat Transferred 5836 | . . 100 . . . 74 298 . . 100 . 400 . . . 250 250 . . . . . . . . . . 1078 50 . . 200 2586 . 450 . Parts Sabotaged 3 | . . . . . . . . . . . . . . . . . . 3 . . . . . . . . . . . . . . . . . . Parts Stolen . | . . . . . . . . . . . . . . . . . . . . . . . . . . . . . . . . . . . . . Parts Stripped . | . . . . . . . . . . . . . . . . . . . . . . . . . . . . . . . . . . . . . Power Chain Reactions 15 | . . . . . . . . . . 1 . 5 . . . . 5 . . . . . . . . . . 1 . . . 1 . . 2 . Missiles Intercepted . | . . . . . . . . . . . . . . . . . . . . . . . . . . . . . . . . . . . . . Alert | -11 -10 -10 -9 -9 -9 -8 -8 -8 -8 -8 -8 -7 -7 -7 -7 -7 -7 -6 -6 -6 -6 -5 -5 -5 -5 -4 -4 -4 -4 -4 -4 -4 -4 -3 -2 -1 ------- Run | Scr Mat Min Mat Min Exi Min Mat Gar Mat Sto Gar Fac Was Fac Gar Fac Gar Fac Was Fac Gar Fac Was Fac Gar Fac Was Fac Ext Cet Arc Hub Gar Res Res Acc Peak Influence 2973 | 70 2461 1166 2973 1746 . 208 1693 2046 1601 1564 2032 1745 1100 1548 1799 1648 2070 1474 298 2493 2152 2420 1100 2063 2806 1472 530 1706 1018 468 258 1891 2186 1915 1505 991 Initial 1745 | . . 751 1 1159 . . . 1100 997 1100 1016 1066 1100 770 1082 944 1153 1086 283 . 1745 1129 1100 536 1430 1472 515 58 835 96 101 . 1288 1229 1100 836 Average 1096 | 37 1005 767 650 1046 . 56 809 1718 1175 1328 1500 1202 1100 693 1492 995 1608 1102 123 606 1953 1583 930 1232 2023 1472 324 868 176 284 139 963 1765 1600 1245 871 Maximum Alert Level 5 | . 5 4 5 5 . 1 5 5 5 4 5 5 4 4 5 5 5 4 1 5 5 5 4 5 5 4 2 5 3 2 1 5 5 5 4 3 Low Security (%) 13 | 100 45 6 61 . . 98 6 . . . . . . . . . . . 68 10 . . . . . . 38 7 87 26 59 17 . . . . Level 1 6 | . 1 7 4 . . 1 9 . . . . . . 17 . . . . 31 54 . . . . . . 30 4 1 46 40 20 . . . . Level 2 7 | . 1 22 4 . . . 28 . . . . . . 50 . 6 . 1 . 4 . . . 22 . . 30 23 . 27 . 3 . . . . Level 3 21 | . 6 55 1 80 . . 27 . 53 . 9 33 . 14 7 75 . 51 . 10 . . 64 24 . . . 35 10 . . 3 . . . 100 Level 4 27 | . 7 8 4 12 . . 26 33 44 100 58 64 100 18 58 11 48 47 . 14 . 56 35 20 17 100 . 20 . . . 22 25 54 100 . Level 5 22 | . 36 . 23 7 . . 1 66 . . 31 . . . 34 6 51 . . 5 100 39 . 26 82 . . 7 . . . 32 74 22 . . High Security . | . . . . . . . . . 2 . . 1 . . . . . . . 1 . 4 . 5 . . . . . . . . . 22 . . Max Security . | . . . . . . . . . . . . . . . . . . . . . . . . . . . . . . . . . . . . . Sterilizations 3 | . . . 1 . . . 1 . . . . . . . . . . 1 . . . . . . . . . . . . . . . . . . Squads Dispatched 243 | . 9 . 12 2 . 2 10 . 10 10 . 17 . 23 . 10 . 46 . 30 . 11 . 8 . . . 11 2 . . 17 . 8 4 1 Investigation 20 | . 8 . 2 . . . 1 . . . . 1 . 2 . 1 . . . 3 . . . . . . . . . . . . . . 1 1 Extermination 58 | . . . . . . . . . . . . 7 . 9 . 4 . 11 . 11 . 3 . 2 . . . 4 . . . 5 . 1 1 . Reinforcement 44 | . 1 . 4 2 . 2 5 . 5 . . 2 . . . 1 . 4 . 6 . 2 . 1 . . . 1 1 . . 4 . 1 2 . Assault 91 | . . . 6 . . . 4 . 2 3 . 7 . 9 . 4 . 19 . 10 . 6 . 4 . . . 6 1 . . 4 . 6 . . Garrison 30 | . . . . . . . . . 3 7 . . . 3 . . . 12 . . . . . 1 . . . . . . . 4 . . . . Intercept . | . . . . . . . . . . . . . . . . . . . . . . . . . . . . . . . . . . . . . Searches Triggered . | . . . . . . . . . . . . . . . . . . . . . . . . . . . . . . . . . . . . . Construction Impeded 20 | . . . 1 2 . 2 5 . 3 . . 1 . . . 1 . 1 . 3 . . . . . . . . . . . . . . 1 . Haulers Reinforced 8 | . . . . . . . . . . . . 1 . . . . . 2 . 1 . 2 . . . . . . . . . 1 . 1 . . Active Scanning Responses . | . . . . . . . . . . . . . . . . . . . . . . . . . . . . . . . . . . . . . Cargo Convoy Interrupts 2 | . . . . . . . . . . . . . . . . . . . . . . . . 1 . . . 1 . . . . . . . . Stealth | -11 -10 -10 -9 -9 -9 -8 -8 -8 -8 -8 -8 -7 -7 -7 -7 -7 -7 -6 -6 -6 -6 -5 -5 -5 -5 -4 -4 -4 -4 -4 -4 -4 -4 -3 -2 -1 --------- Run | Scr Mat Min Mat Min Exi Min Mat Gar Mat Sto Gar Fac Was Fac Gar Fac Gar Fac Was Fac Gar Fac Was Fac Gar Fac Was Fac Ext Cet Arc Hub Gar Res Res Acc Distress Signals 34 | . 3 3 3 . . . 4 . 3 5 1 1 . 2 . . . . . 2 . . . . . . . 1 1 3 . 1 . . . 1 Communications Jammed 379 | . . . . . . . . . . . . . . 1 . 3 . 42 . 42 . 70 . 63 . . . 95 . . . 62 . . 1 . Distress Signals 377 | . . . . . . . . . . . . . . 1 . 3 . 41 . 42 . 70 . 62 . . . 95 . . . 62 . . 1 . Times Spotted 1415 | . 39 11 69 23 . 5 68 23 50 47 28 75 6 73 24 39 27 158 6 131 9 80 7 43 42 . 5 74 32 11 10 76 37 21 39 27 Peak Tracking Total 15 | . 7 3 8 10 . 2 5 3 5 5 6 6 2 6 5 5 15 9 2 11 3 10 3 11 7 . 3 14 5 5 1 10 6 7 12 12 Tactical Retreats 34 | . . . . 2 . . . 1 . . 2 . 1 . 2 . 2 2 . 2 . 2 1 1 4 . . . . . . 3 3 . 2 4 Traps | -11 -10 -10 -9 -9 -9 -8 -8 -8 -8 -8 -8 -7 -7 -7 -7 -7 -7 -6 -6 -6 -6 -5 -5 -5 -5 -4 -4 -4 -4 -4 -4 -4 -4 -3 -2 -1 ------- Run | Scr Mat Min Mat Min Exi Min Mat Gar Mat Sto Gar Fac Was Fac Gar Fac Gar Fac Was Fac Gar Fac Was Fac Gar Fac Was Fac Ext Cet Arc Hub Gar Res Res Acc Traps Triggered 59 | . 2 . . . . . 1 9 . 1 6 2 . 4 2 1 1 4 . 2 . 2 . 3 . 1 . . 1 . . 1 10 1 3 2 Indirectly 3 | . . . . . . . . . . . . . . . . . . . . . . . . . . . . . . . . . . . 3 . Trap Hack Attempts 56 | . 56 . . . . . . . . . . . . . . . . . . . . . . . . . . . . . . . . . . . Triggered . | . . . . . . . . . . . . . . . . . . . . . . . . . . . . . . . . . . . . . Disarmed 4 | . . . . . . . . . . . . . . . . . . . . . . . . . . . . . . . . 4 . . . . Reprogrammed 6 | . 6 . . . . . . . . . . . . . . . . . . . . . . . . . . . . . . . . . . . Reused . | . . . . . . . . . . . . . . . . . . . . . . . . . . . . . . . . . . . . . Traps Extracted 4 | . 4 . . . . . . . . . . . . . . . . . . . . . . . . . . . . . . . . . . . Installed . | . . . . . . . . . . . . . . . . . . . . . . . . . . . . . . . . . . . . . Triggered . | . . . . . . . . . . . . . . . . . . . . . . . . . . . . . . . . . . . . . Most Traps Carried 7 | . 4 7 7 6 6 6 6 . . . . . . . . . . . . . . . . . . . . . . . . . . . . . Machines | -11 -10 -10 -9 -9 -9 -8 -8 -8 -8 -8 -8 -7 -7 -7 -7 -7 -7 -6 -6 -6 -6 -5 -5 -5 -5 -4 -4 -4 -4 -4 -4 -4 -4 -3 -2 -1 ---------- Run | Scr Mat Min Mat Min Exi Min Mat Gar Mat Sto Gar Fac Was Fac Gar Fac Gar Fac Was Fac Gar Fac Was Fac Gar Fac Was Fac Ext Cet Arc Hub Gar Res Res Acc Machines Disabled 239 | . 31 5 12 4 . 3 9 8 6 3 9 3 . 1 2 19 6 26 . 18 5 1 . 4 8 . . 14 2 3 1 30 6 . . . Max in Single Turn 20 | . 3 2 3 1 . 2 2 2 2 1 2 1 . 1 1 6 2 9 . 2 2 1 . . 2 . . 10 2 1 1 20 2 . . . Garrison Access 3 | . . . . . . . . . . . . . . . . . . 3 . . . . . . . . . . . . . . . . . . Garrison Relay 25 | . . . . . . . . 4 . . 4 . . . 2 . 4 . . . 2 . . . 5 . . . . . . . 4 . . . Phase Generator 6 | . . . . . . . . 1 . . 1 . . . . . 1 . . . 1 . . . 1 . . . . . . . 1 . . . Network Hub 2 | . . . . . . . . . . . . . . . . . . . . . . . . . . . . . . . . 2 . . . . Energy Cycler 1 | . . . . . . . . . . . . . . . . . . . . . . . . . . . . . 1 . . . . . . . Machines Sabotaged 3 | . 2 . 1 . . . . . . . . . . . . . . . . . . . . . . . . . . . . . . . . . Garrisons Compromised . | . . . . . . . . . . . . . . . . . . . . . . . . . . . . . . . . . . . . . Overloaded Fab Kills . | . . . . . . . . . . . . . . . . . . . . . . . . . . . . . . . . . . . . . Hacking | -11 -10 -10 -9 -9 -9 -8 -8 -8 -8 -8 -8 -7 -7 -7 -7 -7 -7 -6 -6 -6 -6 -5 -5 -5 -5 -4 -4 -4 -4 -4 -4 -4 -4 -3 -2 -1 --------- Run | Scr Mat Min Mat Min Exi Min Mat Gar Mat Sto Gar Fac Was Fac Gar Fac Gar Fac Was Fac Gar Fac Was Fac Gar Fac Was Fac Ext Cet Arc Hub Gar Res Res Acc Machines Accessed 95 | . 6 . 5 1 2 1 6 . 5 5 . 5 . 13 . 6 . 9 . 10 . 4 . 3 . . . 4 1 1 . 4 . 1 2 1 Terminals 56 | . 5 . 3 . . 1 4 . 4 3 . 3 . 6 . 3 . 6 . 5 . 1 . 1 . . . 2 1 1 . 3 . 1 2 1 Fabricators 5 | . . . . . . . . . . . . . . 1 . . . . . 2 . . . 1 . . . 1 . . . . . . . . Repair Stations 10 | . . . . . . . . . 1 1 . 1 . 2 . 1 . . . 1 . 2 . . . . . 1 . . . . . . . . Recycling Units 8 | . 1 . 2 . . . 1 . . . . 1 . 2 . 1 . . . . . . . . . . . . . . . . . . . . Scanalyzers 2 | . . . . . . . . . . . . . . . . . . . . 1 . 1 . . . . . . . . . . . . . . Garrison Access 11 | . . . . . . . 1 . . 1 . . . 2 . 1 . 3 . 1 . . . 1 . . . . . . . 1 . . . . Total Hacks 183 | . 10 . 11 1 2 3 9 . 14 9 . 13 . 20 . 8 . 14 . 24 . 10 . 4 . . . 10 1 2 . 6 . 3 6 3 Successful 97 | . 7 . 8 1 2 1 6 . 6 6 . 11 . 8 . 3 . 4 . 13 . 5 . 2 . . . 5 . 1 . 4 . 2 2 . Failed 85 | . 3 . 3 . . 1 3 . 8 3 . 2 . 12 . 5 . 10 . 11 . 5 . 2 . . . 5 1 1 . 2 . 1 4 3 Catastrophic 17 | . . . . . . . 1 . 2 2 . 1 . 2 . 2 . 1 . 1 . . . 1 . . . 1 . . . . . . 1 2 Database Lockouts 1 | . . . . . . 1 . . . . . . . . . . . . . . . . . . . . . . . . . . . . . . Manual 93 | . 7 . 7 . 1 3 3 . 2 5 . 8 . 12 . 5 . 10 . 13 . 3 . . . . . 5 1 . . 2 . 3 3 . Terminals 117 | . 9 . 7 . . 3 6 . 11 6 . 8 . 11 . 4 . 11 . 12 . 2 . 2 . . . 5 1 2 . 5 . 3 6 3 Fabricators 12 | . . . . . . . . . . . . . . 1 . . . . . 6 . . . 1 . . . 4 . . . . . . . . Repair Stations 20 | . . . . . . . . . 3 2 . 4 . 2 . 1 . . . 1 . 6 . . . . . 1 . . . . . . . . Recycling Units 11 | . 1 . 4 . . . 1 . . . . 1 . 2 . 2 . . . . . . . . . . . . . . . . . . . . Scanalyzers 6 | . . . . . . . . . . . . . . . . . . . . 4 . 2 . . . . . . . . . . . . . . Garrison Access 14 | . . . . . . . 2 . . 1 . . . 4 . 1 . 3 . 1 . . . 1 . . . . . . . 1 . . . . Terminal Hacks 28 | . 1 . 2 1 2 1 3 . 4 2 . 2 . 1 . . . . . . . . . 1 . . . 2 . 1 . 2 . 1 2 . Record 1 | . . . . . 1 . . . . . . . . . . . . . . . . . . . . . . . . . . . . . . . Part Schematic 2 | . . . . . . . 1 . . . . . . . . . . . . . . . . 1 . . . . . . . . . . . . Robot Analysis 1 | . . . . . . 1 . . . . . . . . . . . . . . . . . . . . . . . . . . . . . . Prototype ID Bank 5 | . . . 1 . . . 2 . 1 . . 1 . . . . . . . . . . . . . . . . . . . . . . . . Open Door 4 | . . . . 1 . . . . . 1 . . . . . . . . . . . . . . . . . 1 . 1 . . . . . . Branch Access Points 5 | . . . 1 . . . . . 1 . . . . . . . . . . . . . . . . . . 1 . . . . . 1 1 . Terminal Index 2 | . . . . . . . . . 1 . . 1 . . . . . . . . . . . . . . . . . . . . . . . . Alert Level 1 | . 1 . . . . . . . . . . . . . . . . . . . . . . . . . . . . . . . . . . . Unreport Threat 3 | . . . . . . . . . 1 1 . . . 1 . . . . . . . . . . . . . . . . . . . . . . Disarm Traps 1 | . . . . . . . . . . . . . . . . . . . . . . . . . . . . . . . . 1 . . . . Hauler Manifests 1 | . . . . . . . . . . . . . . . . . . . . . . . . . . . . . . . . 1 . . . . Zone Layout 1 | . . . . . . . . . . . . . . . . . . . . . . . . . . . . . . . . . . . 1 . EX-Prototype ID Bank 1 | . . . . . 1 . . . . . . . . . . . . . . . . . . . . . . . . . . . . . . . Fabricator Hacks 4 | . . . . . . . . . . . . . . . . . . . . 3 . . . . . . . 1 . . . . . . . . Load Schematic 2 | . . . . . . . . . . . . . . . . . . . . 2 . . . . . . . . . . . . . . . . Build 2 | . . . . . . . . . . . . . . . . . . . . 1 . . . . . . . 1 . . . . . . . . Repair Station Hacks 10 | . . . . . . . . . 2 2 . 4 . . . . . . . . . 2 . . . . . . . . . . . . . . Scan Component 5 | . . . . . . . . . 1 1 . 2 . . . . . . . . . 1 . . . . . . . . . . . . . . Repair 5 | . . . . . . . . . 1 1 . 2 . . . . . . . . . 1 . . . . . . . . . . . . . . Recycling Unit Hacks 3 | . . . 2 . . . . . . . . . . . . 1 . . . . . . . . . . . . . . . . . . . . Process 2 | . . . 1 . . . . . . . . . . . . 1 . . . . . . . . . . . . . . . . . . . . Retrieve Matter 1 | . . . 1 . . . . . . . . . . . . . . . . . . . . . . . . . . . . . . . . . Scanalyzer 6 | . . . . . . . . . . . . . . . . . . . . 4 . 2 . . . . . . . . . . . . . . Insert Component 3 | . . . . . . . . . . . . . . . . . . . . 2 . 1 . . . . . . . . . . . . . . Analyze 3 | . . . . . . . . . . . . . . . . . . . . 2 . 1 . . . . . . . . . . . . . . Garrison Access Hacks 11 | . . . . . . . 1 . . 1 . . . 2 . 1 . 3 . 1 . . . 1 . . . . . . . 1 . . . . Unlock Access 7 | . . . . . . . 1 . . 1 . . . 1 . 1 . . . 1 . . . 1 . . . . . . . 1 . . . . Seal Access 3 | . . . . . . . . . . . . . . . . . . 3 . . . . . . . . . . . . . . . . . . Coupler Status 1 | . . . . . . . . . . . . . . 1 . . . . . . . . . . . . . . . . . . . . . . Unauthorized Hacks 35 | . 6 . 4 . . . 2 . . 1 . 5 . 5 . 1 . 1 . 5 . 1 . . . . . 2 . . . 1 . 1 . . Terminals 23 | . 5 . 2 . . . 1 . . 1 . 4 . 2 . . . 1 . 4 . . . . . . . 1 . . . 1 . 1 . . Track 1 | . . . . . . . . . . . . . . . . . . . . 1 . . . . . . . . . . . . . . . . Botnet 13 | . . . 1 . . . 1 . . 1 . 3 . 2 . . . . . 2 . . . . . . . 1 . . . 1 . 1 . . Disrupt 1 | . . . . . . . . . . . . 1 . . . . . . . . . . . . . . . . . . . . . . . . Operators 2 | . . . . . . . . . . . . . . . . . . 1 . 1 . . . . . . . . . . . . . . . . Sabotage 5 | . 4 . 1 . . . . . . . . . . . . . . . . . . . . . . . . . . . . . . . . . Search 1 | . 1 . . . . . . . . . . . . . . . . . . . . . . . . . . . . . . . . . . . Fabricators . | . . . . . . . . . . . . . . . . . . . . . . . . . . . . . . . . . . . . . Repair Stations 4 | . . . . . . . . . . . . . . . . 1 . . . 1 . 1 . . . . . 1 . . . . . . . . Mechanics 4 | . . . . . . . . . . . . . . . . 1 . . . 1 . 1 . . . . . 1 . . . . . . . . Recycling Units 7 | . 1 . 2 . . . 1 . . . . 1 . 2 . . . . . . . . . . . . . . . . . . . . . . Tunnel 7 | . 1 . 2 . . . 1 . . . . 1 . 2 . . . . . . . . . . . . . . . . . . . . . . Scanalyzers . | . . . . . . . . . . . . . . . . . . . . . . . . . . . . . . . . . . . . . Garrison Access 1 | . . . . . . . . . . . . . . 1 . . . . . . . . . . . . . . . . . . . . . . Restock 1 | . . . . . . . . . . . . . . 1 . . . . . . . . . . . . . . . . . . . . . . Data Cores Recovered 1 | . . . . . . . . . . . . . . . . . . . . . . . . 1 . . . . . . . . . . . . Used . | . . . . . . . . . . . . . . . . . . . . . . . . . . . . . . . . . . . . . Hacking Detections 65 | . 2 . 2 . . 1 5 . 3 2 . 4 . 10 . 5 . 6 . 8 . 2 . 3 . . . 3 1 . . 4 . 1 2 1 Full Trace Events 4 | . . . . . . . . . . . . . . . . . . . . 3 . . . . . . . . . . . . . . . 1 Feedback Events . | . . . . . . . . . . . . . . . . . . . . . . . . . . . . . . . . . . . . . Feedback Blocked . | . . . . . . . . . . . . . . . . . . . . . . . . . . . . . . . . . . . . . Robot Schematics Acquired . | . . . . . . . . . . . . . . . . . . . . . . . . . . . . . . . . . . . . . Robots Built . | . . . . . . . . . . . . . . . . . . . . . . . . . . . . . . . . . . . . . Authchips . | . . . . . . . . . . . . . . . . . . . . . . . . . . . . . . . . . . . . . Time . | . . . . . . . . . . . . . . . . . . . . . . . . . . . . . . . . . . . . . Total Robot Build Rating . | . . . . . . . . . . . . . . . . . . . . . . . . . . . . . . . . . . . . . Part Schematics Acquired 5 | . . . . . . . 1 . . . . . . . . . . . . 2 . 1 . 1 . . . . . . . . . . . . Parts Built 3 | . . . . . . . . . . . . . . . . . . . . 1 . . . . . . . 2 . . . . . . . . Authchips . | . . . . . . . . . . . . . . . . . . . . . . . . . . . . . . . . . . . . . Time 273 | . . . . . . . . . . . . . . . . . . . . 134 . . . . . . . 139 . . . . . . . . Total Part Build Rating 22 | . . . . . . . . . . . . . . . . . . . . 4 . . . . . . . 18 . . . . . . . . Parts Repaired 5 | . . . . . . . . . 1 1 . 2 . . . . . . . . . 1 . . . . . . . . . . . . . . Time 221 | . . . . . . . . . 32 50 . 88 . . . . . . . . . 51 . . . . . . . . . . . . . . Parts Recycled . | . . . . . . . . . . . . . . . . . . . . . . . . . . . . . . . . . . . . . Recycled Matter 273 | . . . 88 . . . . . . . . . . . . 185 . . . . . . . . . . . . . . . . . . . . Retrieved Matter 172 | . . . 172 . . . . . . . . . . . . . . . . . . . . . . . . . . . . . . . . . Retrieved Components . | . . . . . . . . . . . . . . . . . . . . . . . . . . . . . . . . . . . . . Parts Scanalyzed 3 | . . . . . . . . . . . . . . . . . . . . 2 . 1 . . . . . . . . . . . . . . Part Schematics Acquired 3 | . . . . . . . . . . . . . . . . . . . . 2 . 1 . . . . . . . . . . . . . . Parts Damaged 1 | . . . . . . . . . . . . . . . . . . . . 1 . . . . . . . . . . . . . . . . Bothacking | -11 -10 -10 -9 -9 -9 -8 -8 -8 -8 -8 -8 -7 -7 -7 -7 -7 -7 -6 -6 -6 -6 -5 -5 -5 -5 -4 -4 -4 -4 -4 -4 -4 -4 -3 -2 -1 ------------ Run | Scr Mat Min Mat Min Exi Min Mat Gar Mat Sto Gar Fac Was Fac Gar Fac Gar Fac Was Fac Gar Fac Was Fac Gar Fac Was Fac Ext Cet Arc Hub Gar Res Res Acc Used RIF Installer 7 | . . . . . . . . 1 . . 1 . . . 1 . 1 . . . 1 . . . 1 . . . . . . . 1 . . . Command Fork 1 | . . . . . . . . . . . . . . . . . . . . . . . . . 1 . . . . . . . . . . . Signal Jammer 1 | . . . . . . . . . . . 1 . . . . . . . . . . . . . . . . . . . . . . . . . Robot Detection 1 | . . . . . . . . . . . . . . . . . . . . . 1 . . . . . . . . . . . . . . . Watcher Feeds 1 | . . . . . . . . . . . . . . . 1 . . . . . . . . . . . . . . . . . . . . . Patrol Navigation 1 | . . . . . . . . . . . . . . . . . 1 . . . . . . . . . . . . . . . . . . . Autoassimilate 1 | . . . . . . . . . . . . . . . . . . . . . . . . . . . . . . . . . 1 . . . Robots Hacked 54 | . . . . . . . . 1 . 1 . 1 6 3 . 2 . 6 6 3 . 2 6 1 1 . 5 3 3 1 1 2 . . . . Non-combat 27 | . . . . . . . . . . 1 . 1 . 3 . 2 . 6 . 3 . 2 . 1 . . . 3 2 . 1 2 . . . . Combat 27 | . . . . . . . . 1 . . . . 6 . . . . . 6 . . . 6 . 1 . 5 . 1 1 . . . . . . Robot Hacks Applied 83 | . . . . . . . . 2 . 1 . 1 7 4 . 2 . 19 6 4 . 2 7 1 2 . 5 4 12 1 1 2 . . . . parse_system 8 | . . . . . . . . . . . . . . . . . . 2 . 1 . . . . 1 . . 2 . 1 1 . . . . . no_distress 7 | . . . . . . . . . . . . 1 . 4 . . . 2 . . . . . . . . . . . . . . . . . . find_chute 3 | . . . . . . . . . . . . . . . . . . 1 . . . 2 . . . . . . . . . . . . . . ignore_parts 2 | . . . . . . . . . . . . . . . . . . 1 . 1 . . . . . . . . . . . . . . . . purge_threat 21 | . . . . . . . . . . . . . . . . . . 12 . . . . . . . . . . 9 . . . . . . . block_reporting 1 | . . . . . . . . . . . . . . . . . . . . . . . . . . . . . 1 . . . . . . . ignore_targets 25 | . . . . . . . . . . . . . 7 . . . . . 6 . . . 7 . . . 5 . . . . . . . . . disable_weapons 2 | . . . . . . . . 2 . . . . . . . . . . . . . . . . . . . . . . . . . . . . formatsys_low 12 | . . . . . . . . . . 1 . . . . . 2 . 1 . 2 . . . 1 . . . 2 1 . . 2 . . . . formatsys_high 2 | . . . . . . . . . . . . . . . . . . . . . . . . . 1 . . . 1 . . . . . . . Relay Couplers Released 109 | . . . . . . . . 17 . . 17 . . 3 8 . 17 . . 3 6 . . . 21 . . . . . . . 17 . . . Machine Destruction 103 | . . . . . . . . 17 . . 17 . . . 8 . 17 . . . 6 . . . 21 . . . . . . . 17 . . . Programmers 6 | . . . . . . . . . . . . . . 3 . . . . . 3 . . . . . . . . . . . . . . . . Attached 23 | . . . . . . . . 1 . 1 . . 1 . . 1 . 6 . 1 . . . 1 3 . . 1 4 . . 1 1 1 . . Fabnet Peak Effective % . | . . . . . . . . . . . . . . . . . . . . . . . . . . . . . . . . . . . . . Robots Rewired 30 | . . . . . . . . . . . 6 . . . . . . . . . . . . . . . . . 15 . . . 9 . . . Allies Hacked 2 | . . . . . . . . . . . . . . . . 1 . . . . . . . . . . . 1 . . . . . . . . Hacks Repelled . | . . . . . . . . . . . . . . . . . . . . . . . . . . . . . . . . . . . . . Allies | -11 -10 -10 -9 -9 -9 -8 -8 -8 -8 -8 -8 -7 -7 -7 -7 -7 -7 -6 -6 -6 -6 -5 -5 -5 -5 -4 -4 -4 -4 -4 -4 -4 -4 -3 -2 -1 -------- Run | Scr Mat Min Mat Min Exi Min Mat Gar Mat Sto Gar Fac Was Fac Gar Fac Gar Fac Was Fac Gar Fac Was Fac Gar Fac Was Fac Ext Cet Arc Hub Gar Res Res Acc Total Allies 111 | . . 2 . . . . . . . 1 6 . 1 . . 2 . 1 19 1 . . 19 1 1 . 19 3 21 . . 2 9 3 . . Largest Group 19 | . . 2 . . . . . . . 1 7 6 1 . . 2 1 2 19 19 1 1 19 19 2 2 19 17 15 14 . 1 6 6 2 . Highest-Rated Group 702 | . . 39 . . . . . . . 14 106 93 31 . . 36 13 36 702 702 23 23 702 702 108 108 684 626 548 538 . 35 351 351 95 . Highest-Rated Ally 103 | . . 31 . . . . . . . 14 16 16 31 . . 23 13 23 50 50 23 23 50 50 85 85 50 50 103 52 . 35 68 68 49 . Total Orders 365 | . . . . 2 2 2 1 . . 3 29 1 . 11 . 13 23 73 . 65 19 13 . 15 39 1 3 22 13 8 . 3 1 . 3 . STAY 183 | . . . . . . . . . . 1 21 . . 1 . 5 12 40 . 38 13 6 . 4 18 . 1 12 5 4 . 1 1 . . . ROAM 8 | . . . . . . . . . . . . 1 . . . . 2 1 . 1 1 . . . 1 . . 1 . . . . . . . . FOLLOW 39 | . . . . . . . . . . 1 4 . . . . 1 4 5 . 5 2 4 . 2 9 . . 1 1 . . . . . . . GUARD 1 | . . . . . . . . . . . . . . . . . . . . . . . . . . . . . . 1 . . . . . . AID 86 | . . . . . . . . . . 1 4 . . . . 5 5 18 . 16 3 1 . 6 11 . 1 5 6 3 . 1 . . . . DROP 1 | . . . . . . . . . . . . . . . . . . . . . . . . . . . . . 1 . . . . . . . EXPLORE 31 | . . . . 1 1 1 1 . . . . . . 7 . 1 . 6 . 3 . 1 . 2 . 1 . 2 . . . 1 . . 3 . RETURN 16 | . . . . 1 1 1 . . . . . . . 3 . 1 . 3 . 2 . 1 . 1 . . 1 1 . . . . . . . . Ally Attacks 745 | . . . . . . . . . . . . 18 102 . . . . . . 79 . . . 197 5 . . 145 28 60 . . 6 92 13 . Total Damage 22881 | . . . . . . . . . . . . 324 1710 . . . . . . 3051 . . . 6312 381 . . 3587 945 1729 . . 70 4236 536 . Kills 150 | . . . . . . . . . . . . 3 4 . . . . . . 22 . . . 53 1 . . 19 7 14 . . 1 23 3 . Allies Corrupted 7 | . . . . . . . . . . . . . 1 . . . . . . 1 . . . 3 . . 1 1 . . . . . . . . Allies Melted . | . . . . . . . . . . . . . . . . . . . . . . . . . . . . . . . . . . . . . Intel | -11 -10 -10 -9 -9 -9 -8 -8 -8 -8 -8 -8 -7 -7 -7 -7 -7 -7 -6 -6 -6 -6 -5 -5 -5 -5 -4 -4 -4 -4 -4 -4 -4 -4 -3 -2 -1 ------- Run | Scr Mat Min Mat Min Exi Min Mat Gar Mat Sto Gar Fac Was Fac Gar Fac Gar Fac Was Fac Gar Fac Was Fac Gar Fac Was Fac Ext Cet Arc Hub Gar Res Res Acc Robot Analysis Total 1 | . . . . . . 1 . . . . . . . . . . . . . . . . . . . . . . . . . . . . . . Derelict Logs Recovered 2 | . . 1 . 1 . . . . . . . . . . . . . . . . . . . . . . . . . . . . . . . . Drone Launches 30 | . . . . 1 1 1 1 . . . . 1 . 5 . 1 . 5 . 3 . 1 . 2 . 2 . 2 . . . 1 . . 3 . Drone Recoveries 23 | . . . . 1 1 1 1 . . . . 1 . 4 . 1 . 4 . 2 . 1 . 1 . . 1 1 . . . 1 . . 2 . Exploration | -11 -10 -10 -9 -9 -9 -8 -8 -8 -8 -8 -8 -7 -7 -7 -7 -7 -7 -6 -6 -6 -6 -5 -5 -5 -5 -4 -4 -4 -4 -4 -4 -4 -4 -3 -2 -1 ------------- Run | Scr Mat Min Mat Min Exi Min Mat Gar Mat Sto Gar Fac Was Fac Gar Fac Gar Fac Was Fac Gar Fac Was Fac Gar Fac Was Fac Ext Cet Arc Hub Gar Res Res Acc Turns Passed 118559 | 465 7678 9391 4206 5352 659 2809 4113 5182 2044 2281 5674 4633 391 6416 2160 2711 6172 10327 1265 6822 1872 1695 1137 1351 7642 63 1305 1532 2758 573 858 1632 4217 470 439 264 Spaces Moved 41621 | 148 1892 1795 767 1152 267 788 1033 1953 636 738 2041 1071 141 2447 1009 1127 2536 3985 420 3099 929 687 605 645 3401 38 643 660 1386 286 153 592 1642 165 316 428 Core 367 | 64 . . . . . . . . . . . . . . . . . . . . . . . . . . . . . . . . . . 200 103 Treads 38782 | 84 1528 1795 767 1152 267 14 972 1953 636 738 2041 1071 141 2447 1009 1127 2536 3985 420 3099 929 687 605 645 3401 38 643 660 1386 286 153 592 686 147 116 26 Legs 1651 | . . . . . . 616 61 . . . . . . . . . . . . . . . . . . . . . . . . . 956 18 . . Wheels 522 | . 364 . . . . 158 . . . . . . . . . . . . . . . . . . . . . . . . . . . . . . Hover . | . . . . . . . . . . . . . . . . . . . . . . . . . . . . . . . . . . . . . Flight 299 | . . . . . . . . . . . . . . . . . . . . . . . . . . . . . . . . . . . . 299 Fastest Speed 34 | 50 160 240 160 160 240 110 152 230 232 238 247 245 160 160 160 160 160 160 240 160 160 160 160 160 160 160 160 160 160 160 160 160 160 190 50 34 Average Speed 184 | 132 225 240 160 238 240 175 196 232 233 244 247 246 169 160 162 160 160 160 240 160 163 160 160 160 160 160 167 160 160 160 160 190 202 240 107 49 Slowest Speed 320 | 160 320 240 160 240 240 260 232 305 238 247 247 247 247 160 240 160 160 240 240 160 240 160 160 160 160 160 240 160 160 160 160 240 260 247 247 160 Overloaded Moves . | . . . . . . . . . . . . . . . . . . . . . . . . . . . . . . . . . . . . . Propulsion Burnouts . | . . . . . . . . . . . . . . . . . . . . . . . . . . . . . . . . . . . . . Robots Hopped . | . . . . . . . . . . . . . . . . . . . . . . . . . . . . . . . . . . . . . Cave-ins Triggered . | . . . . . . . . . . . . . . . . . . . . . . . . . . . . . . . . . . . . . Exploration Rate (%) 60 | 4 98 97 56 100 91 94 53 97 46 44 97 18 81 39 76 21 95 39 91 51 73 22 94 25 99 6 89 17 88 76 74 56 77 8 24 13 Regions Visited 36 Branch Regions 9 Pre-discovered Areas 9 | . 1 1 2 . 1 . 1 . . . . 1 . 2 . . . . . . . . . . . . . . . . . . . . . . Known Exits Taken 10 | . . . 1 . . . 1 . 1 1 . . . 1 . 1 . . . 1 . . . 1 . . . 1 . . . 1 . . . . Unknown Exits Taken 11 | 1 1 1 . 1 1 1 . . . . . . . . . . . . . . . . . . . . . . 1 1 1 . . 1 1 . Scrap Searched 3 | . . 2 . 1 . . . . . . . . . . . . . . . . . . . . . . . . . . . . . . . . Spaces Dug 263 | . 15 9 1 . . 10 14 21 1 3 6 4 . 3 . 2 3 52 2 34 . 46 8 . 18 . 8 1 . . . . 1 . 1 . Terrain Destroyed 5831 | . 460 199 530 355 . 89 374 189 181 103 164 75 . 144 7 215 76 630 4 482 77 192 8 14 191 . 8 220 252 8 21 454 87 . 22 . Melee 61 | . . . 1 . . . 2 . 1 3 6 3 . 3 . 2 3 5 2 7 . 1 8 . 4 . 8 1 . . . . . . 1 . Projectile 222 | . . . . . . . . . 9 6 1 1 . 3 . . . 6 2 1 . 3 . 1 4 . . 3 59 8 21 81 13 . . . AOE 5546 | . 460 199 529 355 . 89 372 189 171 94 157 71 . 137 7 213 73 619 . 474 77 188 . 13 183 . . 216 193 . . 373 73 . 21 . Terrain Rammed . | . . . . . . . . . . . . . . . . . . . . . . . . . . . . . . . . . . . . . Walls Destroyed . | . . . . . . . . . . . . . . . . . . . . . . . . . . . . . . . . . . . . . Machines Disabled . | . . . . . . . . . . . . . . . . . . . . . . . . . . . . . . . . . . . . . Actions | -11 -10 -10 -9 -9 -9 -8 -8 -8 -8 -8 -8 -7 -7 -7 -7 -7 -7 -6 -6 -6 -6 -5 -5 -5 -5 -4 -4 -4 -4 -4 -4 -4 -4 -3 -2 -1 --------- Run | Scr Mat Min Mat Min Exi Min Mat Gar Mat Sto Gar Fac Was Fac Gar Fac Gar Fac Was Fac Gar Fac Was Fac Gar Fac Was Fac Ext Cet Arc Hub Gar Res Res Acc Total 76448 | 358 4775 6400 3578 3225 286 1851 2739 2476 1046 1089 2552 2796 214 4514 1436 1854 4569 7344 536 4638 1233 1060 685 927 5384 41 755 977 1792 353 739 846 2312 219 372 477 Wait 28995 | 173 2469 4336 2661 1707 16 829 1333 359 267 184 376 1503 . 1772 353 554 1928 2865 38 1286 277 214 12 224 1759 1 20 143 262 9 568 100 379 3 11 4 Move 41591 | 147 1891 1794 766 1151 266 787 1032 1952 635 737 2040 1071 140 2446 1008 1126 2535 3985 419 3099 928 687 604 644 3400 38 642 659 1385 285 152 591 1641 164 316 428 Hop . | . . . . . . . . . . . . . . . . . . . . . . . . . . . . . . . . . . . . . Pick Up 349 | 3 27 6 10 4 1 1 30 12 7 15 4 15 5 19 6 9 15 27 4 10 1 9 5 10 17 . 5 11 8 6 2 9 30 5 1 . Fast Attach 222 | 7 3 . 4 2 . 5 10 8 3 10 7 4 3 6 5 5 4 18 . 11 . 6 1 . 14 . 7 20 2 5 1 6 26 8 2 9 Attach 134 | . 2 . 1 3 . 1 2 1 2 1 4 4 . 8 4 4 5 16 . 5 . 4 . 6 7 1 1 11 7 1 . 6 15 5 7 . Detach 35 | . . . 1 . . 2 . . 1 1 3 4 . . 1 2 . 6 . . . . . . 5 . 2 4 1 . . . 1 1 . . Swap 730 | . 24 4 30 9 2 14 62 19 22 23 4 49 6 37 8 50 13 113 1 61 7 27 3 14 29 1 6 23 21 6 1 17 10 9 5 . Drop 425 | . 11 6 13 4 1 4 34 16 9 24 10 15 14 17 8 14 18 34 5 18 1 10 6 9 28 . 11 23 4 9 3 11 18 12 3 2 Fire 3608 | 28 291 249 90 341 . 205 234 84 98 88 66 126 46 194 42 81 47 250 67 135 18 102 46 19 120 . 53 82 101 32 12 100 123 12 26 . Melee 144 | . . . 1 . . . 2 7 2 6 26 5 . 15 . 8 4 30 2 10 1 1 8 1 5 . 8 1 . . . . . . 1 . Ram 5 | . . . . . . . . . . . . . . . . . . . . . . . . . . . . . . . . . . . . 5 Kick 3 | . . . . . . 3 . . . . . . . . . . . . . . . . . . . . . . . . . . . . . . Crush 22 | . 1 5 1 4 . . . . . . . . . . . 1 . . . 3 . . . . . . . . 1 . . 6 . . . . Escape Stasis 77 | . . . . . . . . 18 . . 12 . . . 1 . . . . . . . . . . . . . . . . . 17 . . 29 Rewire 52 | . . . . . . . . . . . . . . . . . . . . . . . . . . . . . . . . . 52 . . . Trap 56 | . 56 . . . . . . . . . . . . . . . . . . . . . . . . . . . . . . . . . . . Miscellaneous . | . . . . . . . . . . . . . . . . . . . . . . . . . . . . . . . . . . . . . Route ------- -11/Scrapyard -10/Materials (discovered 5 exits: *Mat x3 / [*Min x2]) -10/Mines (discovered 2 exits: *Mat x2) -9/Materials (discovered 2 exits: *Mat / *Min) -9/Mines (discovered 4 exits: *Mat x2 / *Exi / [*Zio]) -9/Exiles (discovered 2 exits: *Min x2) -8/Mines (discovered 2 exits: *Mat x2) -8/Materials (discovered 3 exits: *Fac / *Sto / Gar) -8/Garrison (discovered 3 exits: *Mat x3) -8/Materials (discovered 2 exits: *Fac / *Sto) -8/Storage -8/Garrison (discovered 3 exits: *Fac x3) -7/Factory -7/Waste -7/Factory (discovered 2 exits: *Low / Gar) -7/Garrison (discovered 3 exits: *Fac x3) -7/Factory -7/Garrison (discovered 3 exits: *Fac x3) -6/Factory (discovered 3 exits: *Fac x2 / *Low) -6/Waste -6/Factory (discovered 3 exits: *Fac / *Low / Gar) -6/Garrison (discovered 2 exits: *Fac x2) -5/Factory -5/Waste -5/Factory -5/Garrison (discovered 3 exits: [*Fac x3]) -4/Factory -4/Waste -4/Factory (discovered 5 exits: Upp x2 / *Ext x2 / Arm) -4/Extension (discovered 3 exits: *Res x2 / *Cet) -4/Cetus (discovered 2 exits: *Res / *Arc) -4/Archives (discovered 3 exits: *Res / *Hub x2) -4/Hub_04(d) (discovered 3 exits: *Res x2 / Gar) -4/Garrison (discovered 2 exits: *Res x2) -3/Research (discovered 3 exits: *Res / Tes x2) -2/Research (discovered 3 exits: *Acc / *Qua x2) -1/Access History --------- Turn | Location | Event 9 | -11/Scrapyard | Discovered new exit (range 15) 466 | -11/Scrapyard | Entered Materials 467 | -10/Materials | Build established: Mutant 3594 | -10/Materials | Discovered new exit (range 16) 4084 | -10/Materials | Discovered new exit (range 8) 4138 | -10/Materials | Destroyed 8 combat bots 4318 | -10/Materials | Discovered new exit (range 14) 4348 | -10/Materials | Discovered new exit (range 16) 5521 | -10/Materials | Discovered new exit (range 14) 8144 | -10/Materials | Entered Mines 8297 | -10/Mines | Discovered new exit (range 9) 8861 | -10/Mines | Found a hidden stash of uninstalled traps 8972 | -10/Mines | Core integrity fell below 50% 9113 | -10/Mines | A weapon hastily lodged in a ceiling crevice suddenly fell to the ground 9158 | -10/Mines | Discovered new exit (range 5) 9163 | -10/Mines | Build established: Trapper-Mutant 9371 | -10/Mines | Excavation squad dispatched 9371 | -10/Mines | A large section of the Mines collapsed 9621 | -10/Mines | Excavation squad dispatched 10471 | -10/Mines | Received a Rocket Launcher from a helpful Derelict 17535 | -10/Mines | Entered Materials 17535 | -9/Materials | Evolved 2 slots: Propulsion x1, Utility x1 20565 | -9/Materials | Destroyed 7 combat bots 20735 | -9/Materials | First assault squad dispatched 20894 | -9/Materials | Identified exit to Mines 20909 | -9/Materials | Discovered new exit (range 16) 20938 | -9/Materials | Build established: Mutant 21196 | -9/Materials | Destroyed 10 combat bots 21607 | -9/Materials | Sterilization system engaged 21607 | -9/Materials | Non-combat units ordered to evacuate 21617 | -9/Materials | Destroyed 8 combat bots 21707 | -9/Materials | Combat units ordered to evacuate 21741 | -9/Materials | Entered Mines 21742 | -9/Mines | Assembled infested the area 21742 | -9/Mines | A Derelict revealed a hidden shortcut to a safe place 21851 | -9/Mines | Destroyed 7 combat bots 21852 | -9/Mines | Lost 3 parts (2n1w) 22225 | -9/Mines | Deemed a non-threat by the Exiles lab entrance 22227 | -9/Mines | Discovered new exit (range 5) 22458 | -9/Mines | Discovered new exit (range 10) 22525 | -9/Mines | Learned Materials garrison access intel 23299 | -9/Mines | Found the Drone Emporium 23320 | -9/Mines | Found Prototype Device 23321 | -9/Mines | Identified Sensor Drone Bay 23453 | -9/Mines | Discovered new exit (range 26) 24121 | -9/Mines | Build established: Scavenger-Mutant 26752 | -9/Mines | Build established: Mutant 27093 | -9/Mines | Entered Exiles 27149 | -9/Exiles | Met 8R-AWN 27192 | -9/Exiles | Met EX-HEX 27264 | -9/Exiles | Met EX-BIN 27295 | -9/Exiles | Aligned with FarCom system 27297 | -9/Exiles | Given EX-Vault access code 27369 | -9/Exiles | Opened EX-Vault 27396 | -9/Exiles | Found Supersonic Drone Bay 27403 | -9/Exiles | Discovered new exit (range 55) 27410 | -9/Exiles | Discovered new exit (range 72) 27469 | -9/Exiles | Warned to stay clear of 0b10 Research branches 27551 | -9/Exiles | Met EX-DEC 27604 | -9/Exiles | Learned location of Zion (-7) 27752 | -9/Exiles | Left Exiles lab with Supersonic Drone Bay 27752 | -9/Exiles | Entered Mines 27763 | -8/Mines | Discovered new exit (range 47) 27769 | -8/Mines | Discovered new exit (range 51) 27826 | -8/Mines | Core integrity fell below 50% 28065 | -8/Mines | Central database locked down 28183 | -8/Mines | Build established: Scavenger-Mutant 30561 | -8/Mines | Entered Materials 30561 | -8/Materials | Evolved 2 slots: Propulsion x1, Weapon x1 30562 | -8/Materials | Loaded intel: 1 garrison access location 31052 | -8/Materials | Build established: Mutant 31295 | -8/Materials | Discovered new exit (range 16) 31536 | -8/Materials | Build established: Tank 31775 | -8/Materials | Identified exit to Garrison 31978 | -8/Materials | Discovered new exit (range 14) 32561 | -8/Materials | First assault squad dispatched 32924 | -8/Materials | Build established: Skirmisher 34606 | -8/Materials | Sterilization system engaged 34606 | -8/Materials | Non-combat units ordered to evacuate 34648 | -8/Materials | Destroyed 8 combat bots 34674 | -8/Materials | Entered Garrison 34687 | -8/Garrison | Installed Relay Interface Framework 34814 | -8/Garrison | Triggered checkpoint 34858 | -8/Garrison | Garrison Relay disabled 35014 | -8/Garrison | Build established: Tank 35165 | -8/Garrison | Triggered checkpoint 35171 | -8/Garrison | Triggered checkpoint 35666 | -8/Garrison | Discovered new exit (range 14) 35759 | -8/Garrison | Triggered checkpoint 35817 | -8/Garrison | Garrison Relay disabled 36185 | -8/Garrison | Discovered new exit (range 9) 36390 | -8/Garrison | Triggered checkpoint 36775 | -8/Garrison | Garrison Relay disabled 36944 | -8/Garrison | Triggered checkpoint 37094 | -8/Garrison | Discovered new exit (range 10) 37534 | -8/Garrison | Phase Generator disabled 37590 | -8/Garrison | Spotted B-75 Beast 38074 | -8/Garrison | Build established: Bothacker-Tank 38825 | -8/Garrison | Build established: Bothacker-Mutant 38872 | -8/Garrison | Garrison Relay disabled 39276 | -8/Garrison | Destroyed B-75 Beast 39618 | -8/Garrison | Build established: Tank 39856 | -8/Garrison | Entered Materials 39986 | -8/Materials | Build established: Scavenger-Tank 40077 | -8/Materials | Repaired Rocket Launcher 40656 | -8/Materials | First assault squad dispatched 40900 | -8/Materials | Discovered new exit (range 16) 41076 | -8/Materials | Garrison activated, responded to threat 41101 | -8/Materials | Destroyed 8 combat bots 41229 | -8/Materials | Identified exit to Storage 41852 | -8/Materials | High security lockdown imminent 41900 | -8/Materials | Entered Storage 41990 | -8/Storage | Garrison activated, responded to threat 42067 | -8/Storage | Identified exit to Garrison 42300 | -8/Storage | First assault squad dispatched 42380 | -8/Storage | Garrison activated, responded to threat 42678 | -8/Storage | Build established: Tank 42687 | -8/Storage | Garrison activated, responded to threat 43332 | -8/Storage | Found Prototype Protection 43332 | -8/Storage | Identified Lgt. Regenerative Plating 43337 | -8/Storage | Repaired Imp. Medium Treads? 43337 | -8/Storage | Found Lgt. Regenerative Plating 43341 | -8/Storage | Found Lgt. Regenerative Plating 43344 | -8/Storage | Found Lgt. Regenerative Plating 43348 | -8/Storage | Found Lgt. Regenerative Plating 43914 | -8/Storage | Build established: Skirmisher 44181 | -8/Storage | Entered Garrison 44181 | -8/Garrison | Accompanied by 1 ally 44293 | -8/Garrison | Triggered checkpoint 44340 | -8/Garrison | Triggered checkpoint 45062 | -8/Garrison | Triggered checkpoint 45391 | -8/Garrison | Discovered new exit (range 15) 45580 | -8/Garrison | Triggered checkpoint 45655 | -8/Garrison | Discovered new exit (range 9) 45846 | -8/Garrison | Discovered new exit (range 11) 45892 | -8/Garrison | Expanded RIF knowledge: Signal Jamming 46445 | -8/Garrison | Build established: Mutant 47052 | -8/Garrison | Build established: Commander-Mutant 47577 | -8/Garrison | Garrison Relay disabled 47886 | -8/Garrison | Phase Generator disabled 48038 | -8/Garrison | Triggered checkpoint 48254 | -8/Garrison | Triggered checkpoint 48325 | -8/Garrison | Build established: Commander-Skirmisher 48902 | -8/Garrison | Garrison Relay disabled 49436 | -8/Garrison | Garrison Relay disabled 49631 | -8/Garrison | Garrison Relay disabled 49746 | -8/Garrison | Triggered checkpoint 49855 | -8/Garrison | Entered Factory 49855 | -7/Factory | Accompanied by 6 allies 49855 | -7/Factory | Evolved 2 slots: Utility x2 50255 | -7/Factory | First assault squad dispatched 50742 | -7/Factory | Build established: Skirmisher 50940 | -7/Factory | Repaired Imp. Medium Treads 50980 | -7/Factory | Repaired Arm. Treads 53403 | -7/Factory | Discovered new exit (range 8) 54425 | -7/Factory | High security lockdown imminent 54488 | -7/Factory | Sucked down chute 54488 | -7/Factory | Entered Waste 54489 | -7/Waste | Met a frightened Derelict 54503 | -7/Waste | EMP discharged 54503 | -7/Waste | System corruption reached 10% 54536 | -7/Waste | Allies destroyed C-40 Crusher 54544 | -7/Waste | Spotted C-40 Crusher 54574 | -7/Waste | Found Damper Plating 54603 | -7/Waste | EMP discharged 54615 | -7/Waste | Spotted C-40 Crusher 54649 | -7/Waste | Spotted C-40 Crusher 54692 | -7/Waste | Allies destroyed C-40 Crusher 54693 | -7/Waste | Spotted C-40 Crusher 54703 | -7/Waste | EMP discharged 54704 | -7/Waste | Spotted C-40 Crusher 54728 | -7/Waste | Allies destroyed C-40 Crusher 54741 | -7/Waste | Found Damper Plating 54771 | -7/Waste | Allies destroyed C-40 Crusher 54803 | -7/Waste | EMP discharged 54803 | -7/Waste | System corruption reached 30% 54821 | -7/Waste | Build established: Scavenger-Mutant 54865 | -7/Waste | Discovered new exit (range 10) 54879 | -7/Waste | Entered Factory 54987 | -7/Factory | Identified exit to Garrison 55577 | -7/Factory | Build established: Scavenger-Skirmisher 55915 | -7/Factory | Found Rocket Array 56982 | -7/Factory | Discovered new exit (range 7) 58079 | -7/Factory | First assault squad dispatched 58774 | -7/Factory | Build established: Skirmisher 59327 | -7/Factory | Garrison activated, responded to threat 59394 | -7/Factory | Build established: Scavenger-Skirmisher 60172 | -7/Factory | Destroyed 9 combat bots 60362 | -7/Factory | Identified exit to Lower Caves 60369 | -7/Factory | Build established: Scavenger-Mutant 60811 | -7/Factory | Build established: Scavenger-Skirmisher 61230 | -7/Factory | Build established: Scavenger-Mutant 61295 | -7/Factory | Entered Garrison 61474 | -7/Garrison | Core integrity fell below 50% 61615 | -7/Garrison | Build established: Scavenger-Skirmisher 62077 | -7/Garrison | Discovered new exit (range 15) 62192 | -7/Garrison | Triggered checkpoint 62283 | -7/Garrison | Discovered new exit (range 9) 62317 | -7/Garrison | Expanded RIF knowledge: Watcher Feeds 62568 | -7/Garrison | Triggered checkpoint 62613 | -7/Garrison | Garrison Relay disabled 62739 | -7/Garrison | Destroyed 7 combat bots 62857 | -7/Garrison | Triggered checkpoint 62943 | -7/Garrison | Discovered new exit (range 12) 63021 | -7/Garrison | Build established: Scavenger-Mutant 63145 | -7/Garrison | Garrison Relay disabled 63436 | -7/Garrison | Build established: Scavenger-Skirmisher 63455 | -7/Garrison | Entered Factory 63801 | -7/Factory | Build established: Mutant 63811 | -7/Factory | Identified exit to Garrison 64255 | -7/Factory | First assault squad dispatched 64650 | -7/Factory | Build established: Scavenger-Skirmisher 64988 | -7/Factory | Build established: Scavenger-Mutant 65718 | -7/Factory | Destroyed 8 combat bots 65802 | -7/Factory | Build established: Scavenger-Skirmisher 66166 | -7/Factory | Entered Garrison 66166 | -7/Garrison | Accompanied by 1 ally 66396 | -7/Garrison | Build established: Mutant 67733 | -7/Garrison | Build established: Scavenger-Mutant 67742 | -7/Garrison | Triggered checkpoint 67742 | -7/Garrison | Triggered checkpoint 67789 | -7/Garrison | Destroyed 14 combat bots 68063 | -7/Garrison | Build established: Scavenger-Skirmisher 68608 | -7/Garrison | Discovered new exit (range 15) 68704 | -7/Garrison | Triggered checkpoint 68789 | -7/Garrison | Discovered new exit (range 13) 68958 | -7/Garrison | Discovered new exit (range 15) 68995 | -7/Garrison | Expanded RIF knowledge: Patrol Navigation 69152 | -7/Garrison | Triggered checkpoint 69246 | -7/Garrison | Triggered checkpoint 69598 | -7/Garrison | Triggered checkpoint 70064 | -7/Garrison | Phase Generator disabled 70182 | -7/Garrison | Triggered checkpoint 71196 | -7/Garrison | Garrison Relay disabled 71332 | -7/Garrison | Garrison Relay disabled 71471 | -7/Garrison | Garrison Relay disabled 71786 | -7/Garrison | Build established: Bothacker-Skirmisher 71900 | -7/Garrison | Triggered checkpoint 71954 | -7/Garrison | Garrison Relay disabled 72338 | -7/Garrison | Entered Factory 72338 | -6/Factory | Accompanied by 1 ally 72338 | -6/Factory | Evolved 2 slots: Utility x1, Weapon x1 72498 | -6/Factory | Discovered new exit (range 22) 72603 | -6/Factory | Discovered new exit (range 73) 72603 | -6/Factory | Identified exit to Factory 72688 | -6/Factory | First assault squad dispatched 72705 | -6/Factory | Garrison activated, responded to threat 73138 | -6/Factory | Discovered exit to Factory (range 13) 73187 | -6/Factory | Garrison activated, responded to threat 73408 | -6/Factory | Garrison activated, responded to threat 73457 | -6/Factory | Destroyed 7 combat bots 73915 | -6/Factory | Garrison activated, responded to threat 73964 | -6/Factory | Destroyed 9 combat bots 74409 | -6/Factory | Build established: Bothacker-Mutant 76286 | -6/Factory | Destroyed 8 combat bots 76766 | -6/Factory | Build established: Scavenger-Mutant 78349 | -6/Factory | Build established: Scavenger-Tank 78802 | -6/Factory | Garrison activated, responded to threat 79406 | -6/Factory | Destroyed 7 combat bots 79406 | -6/Factory | Lost 4 parts (1p1u2w) 82597 | -6/Factory | Sterilization system engaged 82597 | -6/Factory | Non-combat units ordered to evacuate 82665 | -6/Factory | Sucked down chute 82665 | -6/Factory | Entered Waste 82675 | -6/Waste | Spotted C-40 Crusher 82680 | -6/Waste | EMP discharged 82694 | -6/Waste | Spotted C-40 Crusher 82725 | -6/Waste | Spotted C-40 Crusher 82725 | -6/Waste | Spotted C-40 Crusher 82742 | -6/Waste | Spotted C-40 Crusher 82780 | -6/Waste | EMP discharged 82880 | -6/Waste | EMP discharged 82915 | -6/Waste | Spotted C-40 Crusher 82934 | -6/Waste | Build established: Scavenger-Mutant 82977 | -6/Waste | Destroyed C-40 Crusher 82980 | -6/Waste | EMP discharged 83080 | -6/Waste | EMP discharged 83180 | -6/Waste | EMP discharged 83229 | -6/Waste | Destroyed C-40 Crusher 83244 | -6/Waste | Build established: Scavenger-Skirmisher 83245 | -6/Waste | Destroyed C-40 Crusher 83280 | -6/Waste | EMP discharged 83293 | -6/Waste | Destroyed C-40 Crusher 83319 | -6/Waste | Destroyed C-40 Crusher 83380 | -6/Waste | EMP discharged 83399 | -6/Waste | Discovered new exit (range 13) 83480 | -6/Waste | EMP discharged 83580 | -6/Waste | EMP discharged 83608 | -6/Waste | Destroyed C-40 Crusher 83680 | -6/Waste | EMP discharged 83780 | -6/Waste | EMP discharged 83834 | -6/Waste | Met Warlord forces unprepared to attack 83880 | -6/Waste | EMP discharged 83930 | -6/Waste | Entered Factory 83930 | -6/Factory | Accompanied by 19 allies 84013 | -6/Factory | Build established: Scavenger-Mutant 84715 | -6/Factory | Discovered new exit (range 12) 84720 | -6/Factory | Identified exit to Lower Caves 85066 | -6/Factory | Build established: Scavenger-Tank 85167 | -6/Factory | Identified exit to Garrison 85596 | -6/Factory | Build established: Scavenger-Mutant 85720 | -6/Factory | Discovered exit to Factory (range 16) 86321 | -6/Factory | Build established: Scavenger-Skirmisher 86486 | -6/Factory | Found Prototype Processor 86486 | -6/Factory | Identified Exp. Targeting Computer 86489 | -6/Factory | Found Exp. Targeting Computer 88480 | -6/Factory | First assault squad dispatched 88868 | -6/Factory | Fabricated Rocket Array (x1) 89621 | -6/Factory | Build established: Scavenger-Mutant 90364 | -6/Factory | Destroyed 9 combat bots 90423 | -6/Factory | Build established: Skirmisher 90464 | -6/Factory | P-60 Hacker assimilated allied Smith 5b 90662 | -6/Factory | Destroyed 14 combat bots 90671 | -6/Factory | High security lockdown imminent 90751 | -6/Factory | High security lockdown engaged 90752 | -6/Factory | Entered Garrison 90752 | -6/Garrison | Accompanied by 1 ally 90818 | -6/Garrison | Triggered checkpoint 91010 | -6/Garrison | Discovered exit to Factory (range 12) 91040 | -6/Garrison | Expanded RIF knowledge: Robot Detection 91152 | -6/Garrison | Triggered checkpoint 91550 | -6/Garrison | Triggered checkpoint 91990 | -6/Garrison | Phase Generator disabled 92046 | -6/Garrison | Garrison Relay disabled 92368 | -6/Garrison | Garrison Relay disabled 92429 | -6/Garrison | Discovered exit to Factory (range 15) 92624 | -6/Garrison | Entered Factory 92624 | -5/Factory | Accompanied by 1 ally 92624 | -5/Factory | Evolved 2 slots: Propulsion x1, Utility x1 92924 | -5/Factory | First assault squad dispatched 93617 | -5/Factory | Destroyed 12 combat bots 93773 | -5/Factory | Repaired Imp. Assault Rifle 93901 | -5/Factory | Build established: Scavenger-Skirmisher 94250 | -5/Factory | High security lockdown imminent 94291 | -5/Factory | Destroyed 8 combat bots 94319 | -5/Factory | Sucked down chute 94319 | -5/Factory | Entered Waste 94334 | -5/Waste | EMP discharged 94334 | -5/Waste | Spotted C-40 Crusher 94364 | -5/Waste | Spotted C-40 Crusher 94364 | -5/Waste | Spotted C-40 Crusher 94374 | -5/Waste | Spotted C-40 Crusher 94393 | -5/Waste | Spotted C-40 Crusher 94420 | -5/Waste | Destroyed C-40 Crusher 94434 | -5/Waste | EMP discharged 94444 | -5/Waste | Spotted C-40 Crusher 94510 | -5/Waste | Destroyed C-40 Crusher 94534 | -5/Waste | EMP discharged 94564 | -5/Waste | Destroyed C-40 Crusher 94634 | -5/Waste | EMP discharged 94666 | -5/Waste | Destroyed C-40 Crusher 94681 | -5/Waste | Destroyed C-40 Crusher 94734 | -5/Waste | EMP discharged 94781 | -5/Waste | Destroyed C-40 Crusher 94834 | -5/Waste | EMP discharged 94888 | -5/Waste | Discovered new exit (range 13) 94934 | -5/Waste | EMP discharged 95034 | -5/Waste | EMP discharged 95134 | -5/Waste | EMP discharged 95208 | -5/Waste | Build established: Scavenger-Mutant 95234 | -5/Waste | EMP discharged 95309 | -5/Waste | Met Warlord forces unprepared to attack 95334 | -5/Waste | EMP discharged 95434 | -5/Waste | EMP discharged 95456 | -5/Waste | Entered Factory 95456 | -5/Factory | Accompanied by 19 allies 95545 | -5/Factory | System corruption reached 10% 96056 | -5/Factory | First assault squad dispatched 96596 | -5/Factory | Identified exit to Garrison 96714 | -5/Factory | Cargo convoy interrupted 96721 | -5/Factory | Garrison activated, responded to threat 96738 | -5/Factory | High security lockdown imminent 96786 | -5/Factory | Found Prototype Device 96787 | -5/Factory | Identified Beam Splitter 96790 | -5/Factory | Found Beam Splitter 96799 | -5/Factory | Found Prototype Slashing Weapon 96801 | -5/Factory | Found Prototype Device 96807 | -5/Factory | Entered Garrison 96807 | -5/Garrison | Accompanied by 2 allies 96809 | -5/Garrison | Identified Exp. Cloaking Device 96813 | -5/Garrison | Identified Centrium Greatsword 96847 | -5/Garrison | Build established: Scavenger-Tank 96876 | -5/Garrison | Triggered checkpoint 97050 | -5/Garrison | Garrison Relay disabled 97596 | -5/Garrison | Build established: Scavenger-Mutant 97715 | -5/Garrison | Triggered checkpoint 97723 | -5/Garrison | Triggered checkpoint 97742 | -5/Garrison | Spotted B-75 Beast 98010 | -5/Garrison | Triggered checkpoint 98181 | -5/Garrison | Destroyed B-75 Beast 98535 | -5/Garrison | Build established: Scavenger-Skirmisher 98570 | -5/Garrison | Discovered new exit (range 10) 98605 | -5/Garrison | Expanded RIF knowledge: Command Fork 99240 | -5/Garrison | Triggered checkpoint 99267 | -5/Garrison | Destroyed 7 combat bots 99512 | -5/Garrison | Discovered new exit (range 15) 99638 | -5/Garrison | Spotted B-75 Beast 100218 | -5/Garrison | Discovered new exit (range 15) 100251 | -5/Garrison | Build established: Scavenger-Mutant 100665 | -5/Garrison | Phase Generator disabled 100949 | -5/Garrison | Build established: Scavenger-Skirmisher 101113 | -5/Garrison | Garrison Relay disabled 102226 | -5/Garrison | Triggered checkpoint 102259 | -5/Garrison | Garrison Relay disabled 102526 | -5/Garrison | Spotted B-75 Beast 102544 | -5/Garrison | Triggered checkpoint 102646 | -5/Garrison | Garrison Relay disabled 103011 | -5/Garrison | Assimilated Beast 6a with formatsys_high 103441 | -5/Garrison | Build established: Botlord-Mutant 103793 | -5/Garrison | Triggered checkpoint 103905 | -5/Garrison | Garrison Relay disabled 104094 | -5/Garrison | Build established: Botlord-Skirmisher 104330 | -5/Garrison | Triggered checkpoint 104449 | -5/Garrison | Entered Factory 104449 | -4/Factory | Accompanied by 2 allies 104449 | -4/Factory | Evolved 2 slots: Power x1, Utility x1 104512 | -4/Factory | Sucked down chute 104512 | -4/Factory | Entered Waste 104525 | -4/Waste | 1 allies followed down the chute 104527 | -4/Waste | EMP discharged 104535 | -4/Waste | 1 allies followed down the chute 104577 | -4/Waste | Spotted C-40 Crusher 104579 | -4/Waste | Spotted C-40 Crusher 104579 | -4/Waste | Spotted C-40 Crusher 104590 | -4/Waste | Spotted C-40 Crusher 104627 | -4/Waste | EMP discharged 104683 | -4/Waste | Spotted C-40 Crusher 104715 | -4/Waste | Spotted C-40 Crusher 104727 | -4/Waste | EMP discharged 104808 | -4/Waste | Build established: Botlord-Mutant 104827 | -4/Waste | EMP discharged 104927 | -4/Waste | EMP discharged 104957 | -4/Waste | Destroyed C-40 Crusher 105027 | -4/Waste | EMP discharged 105037 | -4/Waste | Destroyed C-40 Crusher 105096 | -4/Waste | Destroyed C-40 Crusher 105118 | -4/Waste | Destroyed C-40 Crusher 105127 | -4/Waste | EMP discharged 105143 | -4/Waste | Destroyed C-40 Crusher 105152 | -4/Waste | Build established: Botlord-Skirmisher 105171 | -4/Waste | Destroyed C-40 Crusher 105227 | -4/Waste | EMP discharged 105327 | -4/Waste | EMP discharged 105427 | -4/Waste | EMP discharged 105527 | -4/Waste | EMP discharged 105545 | -4/Waste | Build established: Botlord-Mutant 105627 | -4/Waste | EMP discharged 105654 | -4/Waste | Discovered new exit (range 16) 105727 | -4/Waste | EMP discharged 105754 | -4/Waste | Met Warlord forces unprepared to attack 105817 | -4/Waste | Entered Factory 105817 | -4/Factory | Accompanied by 17 allies 105960 | -4/Factory | Identified exit to Upper Caves 105960 | -4/Factory | Identified exit to Extension 105960 | -4/Factory | Identified exit to Armory 106113 | -4/Factory | First assault squad dispatched 106147 | -4/Factory | P-70 Sage assimilated allied 9I-9R5(d) 106628 | -4/Factory | Lost 6 parts (1p1u4w) 106651 | -4/Factory | Fabricated Biometal Heavy Treads? 106915 | -4/Factory | Cargo convoy interrupted 106916 | -4/Factory | Spotted Striker 106921 | -4/Factory | Destroyed Striker 106942 | -4/Factory | Destroyed 11 combat bots 106962 | -4/Factory | Lost 4 parts (1p3u) 106968 | -4/Factory | Found Prototype Processor 106968 | -4/Factory | Identified Exp. Core Analyzer 107253 | -4/Factory | Destroyed 8 combat bots 107349 | -4/Factory | Entered Extension 107349 | -4/Extension | Accompanied by 3 allies 107599 | -4/Extension | First assault squad dispatched 107750 | -4/Extension | Energy Cycler disabled 107750 | -4/Extension | Rescued a captive Derelict 107750 | -4/Extension | Rescued a captive Derelict 107750 | -4/Extension | Rescued a captive Derelict 107750 | -4/Extension | Rescued a captive Derelict 107751 | -4/Extension | Rescued a captive Derelict 107751 | -4/Extension | Rescued a captive Derelict 107752 | -4/Extension | Rescued a captive Derelict 107753 | -4/Extension | Rescued a captive Derelict 107753 | -4/Extension | Rescued a captive Derelict 107754 | -4/Extension | Rescued a captive Derelict 107755 | -4/Extension | Rescued a captive Derelict 107759 | -4/Extension | Rescued a captive Derelict 107766 | -4/Extension | Rescued a captive Derelict 108242 | -4/Extension | Build established: Bothacker-Mutant 108459 | -4/Extension | Spotted B-86 Titan 108460 | -4/Extension | Assimilated Titan 7a with formatsys_high 108473 | -4/Extension | Discovered new exit (range 15) 108473 | -4/Extension | Spotted B-86 Titan 108478 | -4/Extension | Destroyed B-86 Titan 108511 | -4/Extension | Extracted ID and sensor layout for unrecognized location from A7's data core 108763 | -4/Extension | Build established: Commander-Tank 109049 | -4/Extension | Disrupted transfer network 109520 | -4/Extension | Build established: Scavenger-Tank 110039 | -4/Extension | Discovered new exit (range 10) 110040 | -4/Extension | Discovered new exit (range 6) 110107 | -4/Extension | Entered Cetus 110107 | -4/Cetus | Accompanied by 14 allies 110125 | -4/Cetus | Spotted Cetus Guard 110130 | -4/Cetus | Spotted Cetus Guard 110130 | -4/Cetus | Spotted Cetus Guard 110131 | -4/Cetus | Spotted Cetus Guard 110139 | -4/Cetus | Allies destroyed Cetus Guard 110152 | -4/Cetus | Allies destroyed Cetus Guard 110153 | -4/Cetus | Destroyed Cetus Guard 110155 | -4/Cetus | Allies destroyed Cetus Guard 110272 | -4/Cetus | Discovered new exit (range 16) 110356 | -4/Cetus | Spotted Cetus Guard 110361 | -4/Cetus | Allies destroyed Cetus Guard 110399 | -4/Cetus | Discovered new exit (range 16) 110408 | -4/Cetus | Met Revision 17 110511 | -4/Cetus | Cetus Manufacturing Module disabled 110680 | -4/Cetus | Entered Archives 110762 | -4/Archives | Discovered new exit (range 16) 110780 | -4/Archives | Discovered new exit (range 14) 110801 | -4/Archives | Discovered new exit (range 15) 110888 | -4/Archives | Unable to access archive contents 111130 | -4/Archives | Build established: Scavenger-Mutant 111538 | -4/Archives | Entered Hub_04(d) 111876 | -4/Hub_04(d) | Discovered new exit (range 13) 111926 | -4/Hub_04(d) | Lost 3 parts (1p2w) 112027 | -4/Hub_04(d) | Identified exit to Garrison 112210 | -4/Hub_04(d) | Build established: Scavenger-Tank 112218 | -4/Hub_04(d) | Network Hub disabled 112230 | -4/Hub_04(d) | Spotted Lightning 112234 | -4/Hub_04(d) | Spotted Lightning 112239 | -4/Hub_04(d) | Garrison activated, responded to threat 112248 | -4/Hub_04(d) | Spotted Lightning 112275 | -4/Hub_04(d) | Destroyed Lightning 112292 | -4/Hub_04(d) | Destroyed Lightning 112306 | -4/Hub_04(d) | Destroyed Lightning 112347 | -4/Hub_04(d) | Found Exp. Targeting Computer 112369 | -4/Hub_04(d) | Found Prototype Device 112371 | -4/Hub_04(d) | Identified Exp. EM Disruption Field 112377 | -4/Hub_04(d) | Found Prototype Device 112377 | -4/Hub_04(d) | Identified Exp. Phase Shifter 112544 | -4/Hub_04(d) | Discovered new exit (range 15) 112573 | -4/Hub_04(d) | First assault squad dispatched 112597 | -4/Hub_04(d) | Network Hub disabled 113170 | -4/Hub_04(d) | Entered Garrison 113372 | -4/Garrison | Triggered checkpoint 113585 | -4/Garrison | Triggered checkpoint 113585 | -4/Garrison | Spotted B-86 Titan 113623 | -4/Garrison | Core integrity fell below 50% 113674 | -4/Garrison | Destroyed B-86 Titan 113696 | -4/Garrison | Lost 8 parts (2p1n3u2w) 114059 | -4/Garrison | Triggered checkpoint 114147 | -4/Garrison | Triggered checkpoint 114193 | -4/Garrison | Discovered new exit (range 15) 114200 | -4/Garrison | Triggered checkpoint 114202 | -4/Garrison | Lost 3 parts (2u1w) 114450 | -4/Garrison | Lost 3 parts (1n1u1w) 115042 | -4/Garrison | Build established: Scavenger-Mutant 115275 | -4/Garrison | Discovered new exit (range 12) 115325 | -4/Garrison | Expanded RIF knowledge: Autoassimilate 115421 | -4/Garrison | Core integrity fell below 20% 115464 | -4/Garrison | Lost 9 parts (2p1n4u2w) 115691 | -4/Garrison | Build established: Scavenger-Skirmisher 116017 | -4/Garrison | Build established: Scavenger-Tank 116029 | -4/Garrison | Phase Generator disabled 116129 | -4/Garrison | Garrison Relay disabled 116300 | -4/Garrison | Triggered checkpoint 116350 | -4/Garrison | Garrison Relay disabled 116630 | -4/Garrison | Garrison Relay disabled 117129 | -4/Garrison | Garrison Relay disabled 117387 | -4/Garrison | Entered Research 117387 | -3/Research | Accompanied by 6 allies 117387 | -3/Research | Evolved 2 slots: Power x1, Propulsion x1 117513 | -3/Research | Identified exit to Testing 117575 | -3/Research | Found Unknown Device 117575 | -3/Research | Identified Antimissile System 117579 | -3/Research | Found Antimissile System 117584 | -3/Research | Found Antimissile System 117616 | -3/Research | Discovered new exit (range 11) 117641 | -3/Research | P-80 Master assimilated allied Sentinel 7c 117679 | -3/Research | First assault squad dispatched 117719 | -3/Research | Allied Derelicts emerged from ambush trap array 117752 | -3/Research | High security lockdown imminent 117832 | -3/Research | High security lockdown engaged 117857 | -3/Research | Entered another Research area 117857 | -2/Research | Accompanied by 2 allies 117857 | -2/Research | Evolved 2 slots: Utility x2 118071 | -2/Research | Identified exit to Quarantine 118194 | -2/Research | Released all parts (9) 118212 | -2/Research | Destroyed 12 combat bots 118230 | -2/Research | Lost 19 parts (1p4n7u7w) 118290 | -2/Research | Discovered new exit (range 12) 118296 | -2/Research | Entered Access 118296 | -1/Access | Evolved 2 slots: Power x1, Propulsion x1 118434 | -1/Access | Build established: Mutant 118467 | -1/Access | Lost 4 parts (3n1u) 118524 | -1/Access | Spotted B-99 Colossus 118536 | -1/Access | Core integrity fell below 50% 118548 | -1/Access | Lost 3 parts (1n2u) 118557 | -1/Access | Core integrity fell below 20% 118560 | -1/Access | Destroyed by B-99 Colossus with Multirail Last Messages --------------- 18536_ Slug penetrates Garrison Access. 18536_ Penetrated by Slug. 18536_ Slug penetrates Garrison Access. 18536_ Penetrated by Slug. 18537_ Slug penetrates Wall. 18541_ Penetrated by Slug. 18555_ Slug penetrates Wall. 18555_ Slammed into G-73 Enforcer. 18555_ Slug penetrates Wall. 18556_ Slammed into G-73 Enforcer. 18557_ Critical hit (Burn: +37). 18557_ Penetrated by Slug. 18557_ Slug penetrates Wall. 18558_ Slammed into G-73 Enforcer. 18559_ Penetrated by Slug. 18559_ Slug penetrates Wall. 18560_ Acquired 4 matter. 18561_ U-05 Engineer builds a Wall. 18561_ Knocked back. 18561_ Penetrated by Slug. Map ----- +----------------------------------------------------+ | ?????????????????????????????????????????????????? | | ?????????????????????????????????????????????????? | | ?????????????????????????????????????????????????? | | ???????######????????????????????????????????????? | | ???????# #????????????????????????????????????? | | ???????# *#????????????????????????????????????? | | ???????#!| #????????????????????????????????????? | | ???????#! #######??????????????????????????????? | | ???????# + #??????????????????????????????? | | ???????# # #??????????????????????????????? | | ???????# # #??????????????????????????????? | | ???????# # #??????????????????????????????? | | ???????# #### #??????????????????????????????? | | ???????######??# #??????????????????????????????? | | ???????????????# #?################?????????????? | | ???????????????# #?# # ??????????????? | | ???? ??????????# #?# # ??????????????? | | ??# ######### #?# # #??????????????? | | ??# #?# =# #??????????????? | | ??# * #?# ?# #??????????????? | | ??# #?# ??+ #??????????????? | | ??# [ !!!h #?# ???# #??????????????? | | ??# !!! h ### ????# #??????????????? | | ??# !!! ############# #??????????????? | | ??# g g A #??????????????? | | ??# bg BB @ #??????????????? | | ??? BB% #??????????????? | | ??? #########hg " ###????????????? | | ???? ????????#h "" u #????????????? | | ???? ????????# G u #????????????? | | ?? ????????# "" u###????????????? | | ?? ????????# " ##?????????????? | | ??? g#????????# #??????????????? | | ??? #????????+ #??????????????? | | ???"" #????????# #??????????????? | | ?F""" #????????####+### ###??????????????? | | ?"""" g#???????????????# #????????????????? | | ??? #???????????????# #????????????????? | | ???? ##??????????????# #????????????????? | | ?????? #??????????????# #????????????????? | | ???????# #??????????????# #????????????????? | | ???????# #??????????????# #????????????????? | | ???????# #??????????????# #????????????????? | | ???????# #??????????????# #????????????????? | | ???????# #??????????????# #????????????????? | | ???????# ################ #####????????????? | | ???????# #????????????? | | ???????# #????????????? | | ???????# #????????????? | | ???????# #????????????? | +----------------------------------------------------+ Best States ------------- Heat Dissipation 81 Energy Generation 53 Energy Capacity 850 Matter Stores 300 Matter Capacity 300 Sight Range 16 Terrain Scan Density 10 Jamming Range 14 Cloak Strength 4 EM Shielding 2 Armor Coverage 3650 Resistance: TH 75 Resistance: EM 90 Core Shielding 30 Power Shielding 66 Propulsion Shielding 33 Point Defense Rating 240 Weapon Cycling 25 Phase Shifting 20 Evasion (%) 62 Targeting Accuracy 12 Launcher Accuracy 40 Target Analysis 6 Core Analysis 8 Recoil Reduction 6 Matter Filtering 30 Kinecelleration 40 Relay Coupler Types 2 Relay Coupler Value 43 Trap Extractor Capacity 4 Item Schematics ----------------- Huge Storage Unit | -8/Materials | Hacked Rocket Array | -6/Factory | Scanalyzed F-cell Engine | -6/Factory | Scanalyzed Remote Force Field | -5/Factory | Scanalyzed Adv. Heavy Treads | -5/Factory | Hacked Robot Schematics ------------------ None Fabricated ------------ Rocket Array | x1 | -6/Factory Biometal Heavy Treads | x2 | -4/Factory | Preloaded Alien Tech Used ----------------- None Achievements -------------- Most Wanted Challenges ------------ None Game ------ Seed DimensionalAlloyChip Manual? 0 Play Time 14:25:37 Cumulative 296.7 hours Start 2022.04.06 @ 00:50:33 End 2022.04.10 @ 19:15:52 Sessions 35 Manual Loads 0 Difficulty Rogue Special Mode None Game No. 78 Rogue 78 Adventurer 0 Explorer 0 Win Type - Total 6 Types 3/1/0/0/2/0/0/0/0 Lore% 58 Gallery% 72 Achievement% 66 Wizard Run 0 Options --------- ASCII 0 Keyboard 0 Movement Arrows Keybinds 0 Fullscreen 0 Font 28/SmallcapsGlow Map View 72x54 Tactical HUD 1 Map Filters NONE Filters NONE Steam 1 RUN: fa207a18-d5dc-45bd-8c29-147f78a8304a